{"text_format":"2","workbook":"xlsx","n_sheets":7,"sheets":["分析","投入产出测算","需求发布","Sheet1","需求明细（旧）","Sheet2","Sheet3"],"not_rendered":{"charts":0,"images":2,"macros":0,"external_links":0,"defined_names":2,"comments":1,"pivot_tables":1},"unopened":[],"bounds":{"document_bytes":16777216,"sheet_cells":100000,"run_cost":"one","rows_first":2000,"rows_last":500,"rows_between":2000,"halvings":0,"cell_chars":16384,"cell_head_chars":4096},"cells_cut":0,"cells_raw":0,"read":"whole","date_system":"1900"}

{"sheet":"分析","index":0,"n_rows":15,"n_cols":17,"rows_kept":15,"cut":false,"hidden":true,"merged":[[0,0,0,15],[1,0,1,15]]}
["招聘需求分析表"]
["说明：\n1、经前期沟通调整后，本次提报招聘需求52人，其中：①业务人员46人（88%），平台类人员需求6人（2人为第一批社招核减岗位，本次继续招聘；1人为离职替补招聘）；②前场岗位人员招聘需求共计25人，占本次招聘需求的48%\n2、业务人员本次招聘布局：\n2.1、云业务专班：本次新增需求调减，与国资云业务人员进行复用\n2,2、信创：调减需求，布局2名市场拓展人员，主要布局销售人员储备，支撑公司整体销售目标，对外发布需求不体现信创\n2.3、国资国企业务：项目需人员驻场，按照项目履约人员进行人员配置\n2.4、行业布局：保留1名医疗解决方案结构师，跟踪当前项目，后期需根据项目进展来确定未来招聘需求"]
["求和项:招聘数量2","列标签"]
["行标签","安全工程师","产品经理","交易运营经理","解决方案架构师","其他","市场拓展经理","数据分析师","系统架构师","系统架构师               ","项目经理","项目经理  ","研发工程师","运维工程师","战略运营","总计"]
["1一体化平台服务运营",null,null,null,11,null,null,null,4,{"$nulls":6},15]
["2国资国企业务",1,2,null,1,null,null,1,1,null,1,null,3,4,null,14]
["3省数据局专班",null,2,null,2,null,null,null,2,{"$nulls":4},1,null,7]
["4云业务专班",null,null,null,0,null,null,null,0,{"$nulls":6},0]
["5数据运营及交易业务",null,1,1,3,{"$nulls":6},1,null,null,null,6]
["6信创业务",null,null,null,0,null,2,null,null,1,0,{"$nulls":4},3]
["7行业布局",null,0,null,1,{"$nulls":6},0,null,null,null,1]
["8平台",1,null,null,null,3,{"$nulls":7},1,1,6]
["总计",2,5,1,18,3,2,1,7,1,1,1,3,6,1,52,{"$f":"GETPIVOTDATA(\"招聘数量2\",$A$3)-GETPIVOTDATA(\"招聘数量2\",$A$3,\"投入方向\",\"8平台\")","v":46}]
[]
["国企三项制度改革\n--叉车-市场化","绩效考核与三项挂钩","收入分配创新的做法","两书一协议","员工手册","国资委考分处\n--数字福建30人",{"$nulls":9},{"$f":"GETPIVOTDATA(\"招聘数量2\",$A$3)-GETPIVOTDATA(\"招聘数量2\",$A$3,\"投入方向\",\"2国资国企业务\")-3","v":35}]

{"sheet":"投入产出测算","index":1,"n_rows":12,"n_cols":13,"rows_kept":12,"cut":false,"hidden":true,"merged":[[0,0,0,12],[1,0,1,12],[5,0,5,11],[6,8,6,11],[10,0,11,0],[10,1,11,1],[7,8,8,11]]}
["人员投入产出测算表"]
["一、人员基本情况：（单位：人；业绩：万元）"]
["序号","人员现状\n（7.25正编）","待入职","小计","第二次社招计划招聘人数","小计","待划转","小计","上半年实际营收","上半年实际收入毛利","上半年实际利润","上半年实际合同额","上半年人均收入毛利"]
["公式","①","②","③=①+②","④","⑤=③+④","⑥","⑦=⑤+⑥","/","⑧","/","/","⑨=⑧/⑦"]
[1,87,10,97,52,{"$f":"D5+E5","v":149},10,{"$f":"F5+G5","v":159},3623,777,-450,133565,{"$f":"J5/H5","v":4.88679245283019}]
["二、人员投入产出测算：（单位：人；业绩：万元）"]
["序号","24年平均人数","人均毛利","24年收入毛利目标","毛利占收入的比率","24年收入目标","24年收入目标\n（规划）","差距","解决策略"]
["公式","①","②","③=①*②","④","⑤=③/④","⑥","⑦=⑤-⑥","1、加人：至少净增加200+以上\n2、提升效率：人均毛利从80万元/人提升到至少200万/人以上\n建议：\n①前场（销售/咨询/产品）引入高阶有能力、有资源的人\n②按照岗位类别，目标分解落实到岗到人，尽快完善激励机制\n③加速新人融入，协同业务进行业务赋能，缩短磨合期，尽快产出价值成果"]
[1,{"$f":"H5","v":159},{"$f":"F12*0.6","v":87.6},{"$f":"C9*B9","v":13928.4},0.73,{"$f":"D9/E9","v":19080},45000,{"$f":"F9-G9","v":-25920}]
[]
["参考","XF主要软件业务22年实际情况","收入毛利","收入","毛利占收入的比率","22年人均毛利","销售配置原则"]
[null,null,28439,39178,{"$f":"C12/D12","v":0.725892082291082},146,"人均不低于1000万合同毛利","合同毛利成本口径"]

{"sheet":"需求发布","index":2,"n_rows":33,"n_cols":7,"rows_kept":33,"cut":false,"hidden":false,"merged":[[0,0,0,6]]}
["数字安徽有限责任公司社会招聘岗位信息表 "]
["序号","岗位","岗位编码","招聘数量","工作地点","岗位职责","任职要求"]
[1,"高级解决方案架构师","SA-01",4,"合肥","1.负责售前进行技术交流，基于公司的技术体系、为政府领域客户提供相关产品解决方案；\n2.深刻理解大数据和AI相关解决方案架构所需关键技术、体系架构、设计模式，负责架构/平台/技术项目/标准规范等建设；\n3.深刻理解客户需求，为客户提供业务架构、应用架构、技术架构、数据架构设计；负责业务模块设计，且能够结合业务规划，定义各系统应用功能边界及系统间的集成关系；\n4.负责面向售前团队提供技术赋能；整理、设计行业解决方案，与后台产品团队沟通业务需求；\n5.在项目可研、初设、详细设计阶段，负责面向客户提供设计咨询服务。","1.大学本科及以上学历，硕士及以上学历优先；\n2.计算机类、电子信息类专业；\n3.具有5年以上政务信息化解决方案、售前咨询经验，同时拥有政务行业软件设计开发经验或架构设计经验人员优先；\n4.40周岁及以下；\n5.至少对一个政务信息化行业细分解决方案方向的行业知识、业务知识、业务架构、应用架构有整体深刻理解，能够在细分专业领域独立完成客户调研、需求分析、业务设计、架构设计、并在技术架构师的帮助下，完成业务架构的落地方案，有智慧城市、城市管理、数字政府、政务服务等行业经验者优先；\n6.具有优秀的书面和口头表达能力，思路清晰，系统思维能力好，善于沟通；\n7.具有相关部门评定的相关领域高级及以上职称的人员优先。"]
[2,"中级解决方案架构师","SA-02",5,"合肥","1.负责售前进行技术交流，基于公司的技术体系、为政府领域客户提供相关产品解决方案；\n2.熟练掌握大数据和AI相关解决方案架构所需关键技术、体系架构、设计模式，架构/平台/技术项目/标准规范等建设；\n3.深刻理解客户需求，为客户提供业务架构、应用架构、技术架构、数据架构设计；负责业务模块设计，且能够结合业务规划，定义各系统应用功能边界及系统间的集成关系；\n4.负责面向售前团队提供技术赋能；整理、设计行业解决方案，与后台产品团队沟通业务需求；\n5.在项目可研、初设、详细设计阶段，负责面向客户提供设计咨询服务。","1.大学本科及以上学历，硕士及以上学历优先；\n2.计算机类、电子信息类专业；\n3.具有3年以上政务信息化解决方案、售前咨询经验；\n4.35周岁及以下；\n5.具有咨询管理的经验，有较强的市场敏锐度，拥有高度责任感和客户服务意识；\n6.熟悉政务信息化类项目建议书、项目可研报告/初步设计等方案文本编制及相关工作流程；\n7.熟悉数字政府行业和项目运作，具有较为丰富的数字政府解决方案的经验，主导过至少1个数字政府项目运作；\n8.良好的沟通和表达能力，认真严谨，抗压能力强，做事积极主动，执行力强。"]
[3,"初级解决方案架构师","SA-03",2,"合肥","1.负责售前进行技术交流，基于公司的技术体系、为政府领域客户提供相关产品解决方案；\n2.基本了解大数据和AI相关解决方案架构所需关键技术、体系架构、设计模式，架构/平台/技术项目/标准规范等建设；\n3.理解客户需求，为客户提供业务架构、应用架构、技术架构、数据架构设计；负责业务模块设计，且能够结合业务规划，定义各系统应用功能边界及系统间的集成关系；\n4.面向售前团队提供技术赋能；整理、设计行业解决方案，与后台产品团队沟通业务需求；\n5.在项目可研、初设、详细设计阶段，负责面向客户提供设计咨询服务。","1.硕士研究生及以上学历；\n2.计算机类、电子信息类等专业；\n3.具有2年以上政务信息化解决方案、售前咨询经验；\n4.35周岁及以下；\n5.具有咨询管理的经验，有较强的市场敏锐度，拥有高度责任感和客户服务意识；\n6.熟悉政务信息化类项目建议书、项目可研报告/初步设计等方案文本编制及相关工作流程；\n7.熟悉数字政府行业和项目运作，具有较为丰富的数字政府解决方案的经验，参与过至少1个数字政府项目运作；\n8.良好的沟通和表达能力，认真严谨，抗压能力强，做事积极主动，执行力强。"]
[4,"解决方案架构师","SA-04",2,"合肥","1.负责城市大脑类、一网统管类、一网通办类业务项目的需求调研，针对需求进行技术规划，设计方案；\n2.对咨询项目的执行负责，制定工作计划并推进实施，并保证项目按时按质完成；\n3.在咨询现场和客户沟通，解决项目进行中的各种问题，能够合理的挖掘和引导客户需求；\n4.配合政务信息化项目的推广，如客户沟通交流、流程推进、招投标等工作；\n5.主动协调各相关资源，负责城市大脑类、一网统管类、一网通办类政务信息化项目落地的全流程运作。","1.大学本科及以上学历，硕士及以上学历优先；\n2.计算机类、电子信息类等专业；\n3.具有5年以上城市大脑类、一网统管类、一网通办类解决方案、售前咨询经验；\n4.35周岁及以下；\n5.熟悉2种及以上智慧应用产品；\n6.具有咨询管理的经验，有较强的市场敏锐度，拥有高度责任感和客户服务意识；\n7.熟悉数字政府行业和项目运作，具有较为丰富的数字政府解决方案的经验；\n8.良好的沟通和表达能力，认真严谨，抗压能力强，做事积极主动，执行力强。"]
[5,"解决方案架构师","SA-05",1,"合肥","1.负责医疗信息化业务项目的需求调研、针对需求进行技术规划，设计方案；\n2.对咨询项目的执行负责，制定工作计划并推进实施，并保证项目按时按质完成；\n3.在咨询现场和客户沟通，解决项目进行中的各种问题，能够合理的挖掘和引导客户需求；\n4.配合政务信息化项目的推广，如客户沟通交流、流程推进、招投标等工作；\n5.主动协调各相关资源，负责医疗行业类政务信息化项目落地的全流程运作。","1.大学本科及以上学历，硕士及以上学历优先；\n2.计算机类、电子信息类专业；\n3.具有5年以上医疗信息化行业解决方案、售前咨询经验；\n4.35周岁及以下；\n5.熟悉2种及以上行业智慧应用产品；\n6.具有咨询管理的经验，有较强的市场敏锐度，拥有高度责任感和客户服务意识；\n7.熟悉数字政府行业和项目运作，具有较为丰富的数字政府解决方案的经验；\n8.良好的沟通和表达能力，认真严谨，抗压能力强，做事积极主动，执行力强。"]
[6,"解决方案架构师","SA-06",1,"合肥","1.负责数据业务（数据交易、数据运营业务相关）的行业研究、政策研究等；\n2.负责业务规划，行业解决方案研究和论证，以及相关商业模式的设计，制定工作计划并推进实施；\n3.协调相关资源，负责数据相关行业重要活动，构建行业影响力。","1.硕士及以上学历；\n2.计算机类、电子信息类、经济学类、金融学类、管理学类、地理信息科学类专业；\n3.5年以上大数据行业应用相关软件开发、咨询或运营服务相关经验；\n4.具有品牌宣传和活动策划经验；\n5.35周岁及以下；\n6.熟悉数据行业的业务运作，具有较丰富的行业和政策研究经验；\n7.良好的综合管理能力，认真严谨，抗压能力强，做事积极主动，执行力强，有较强的市场敏锐度，出色的分析、撰写、汇报能力，逻辑思维和沟通能力强。"]
[7,"解决方案架构师","SA-07",2,"合肥","1.负责普惠金融、人工智能、新能源和智能网联汽车、工业互联网、医疗大健康、智慧农业等行业政策和市场的研究；\n2.负责以上行业的业务发展规划，构建行业整体解决方案，并输出完整的应用落地实施方案；\n3.负责推进行业解决方案的落地，并完成评估和提出改进计划等。","1.大学本科及以上学历，硕士及以上学历优先；\n2.计算机类、电子信息类、经济学类、金融学类、管理学类、地理信息科学类专业；\n3.5年以上大数据行业开发应用咨询经验，主导过重大细分行业应用解决方案的规划和落地；\n4.35周岁及以下；\n5.能够在细分专业领域独立完成客户调研、需求分析、业务设计、架构设计；\n6.具有优秀的书面和口头表达能力，思路清晰，系统思维能力好，善于沟通；               \n7.有汽车行业大数据工作经验优先。"]
[8,"解决方案架构师","SA-08",1,"合肥","1.负责国资国企信息化业务项目的需求调研、针对需求进行技术规划，设计方案；\n2.对咨询项目的执行负责，制定工作计划并推进实施，并保证项目按时按质完成；\n3.在咨询现场和客户沟通，解决项目进行中的各种问题，能够合理的挖掘和引导客户需求；\n4.配合国资国企信息化项目的推广，如客户沟通交流、流程推进、招投标等工作；\n5.主动协调各相关资源，负责国资国企信息化项目落地的全流程运作。","1.大学本科及以上学历，硕士及以上学历优先；\n2.计算机类、电子信息类专业；\n3.具有5年以上国资国企行业解决方案、售前咨询工作经验；\n4.35周岁及以下；\n5.具有咨询管理的经验，有较强的市场敏锐度，拥有高度责任感和客户服务意识；\n6.熟悉国资国企行业和项目运作，具有较为丰富的解决方案项目设计经验；\n7.良好的沟通和表达能力，认真严谨，抗压能力强，做事积极主动，执行力强。\n"]
[9,"高级行业经理","SA-09",1,"合肥","1.负责公司通用性基础性政务信息化业务规划、团队建设；\n2.负责带领团队构建公司通用性基础性政务信息化业务基线产品和解决方案核心能力；\n3.负责带领团队落实公司通用性基础性政务信息化业务年度经营任务指标；\n4.负责带领团队拓展数字政府业务，持续创新场景和应用；\n5.负责公司产品、解决方案、研发、交付团队建设和管理工作。","1.大学本科及以上学历；\n2.计算机类、电子信息类专业；\n3.10年以上工作经验，其中8年以上大数据相关上市公司经营管理工作经验；承担过公司中层及以上管理职务优先；\n4.45周岁及以下；\n5.具有100人以上团队管理工作经验，具备市场到解决方案、到产品、到交付端到端管理经验；\n6.具有年度不少于2000万营收业绩，有年度业绩达亿元业绩经验优先；\n7.具有不少于1个市级及以上政府行业客户服务案例，有省级客户服务案例优先；\n8.市级及以上高层次人才优先。"]
[10,"高级系统架构师","SA-10",2,"合肥","1.负责一体化平台运营相关业务规划,并指导技术方案的制定；\n2.主导重大项目的架构设计和核心模块设计;\n3.牵头技术难题攻关，保证项目按期高质量交付;\n4.指导并审核核心功能的架构与代码模板编写；\n5.识别出技术方向、产品组件、技术培训等需求，并推动落地;\n6.为开发人员提供技术指导及帮助。","1.大学本科及以上学历，硕士及以上学历优先；\n2.计算机类、电子信息类专业；\n3.10年以上大型政府行业项目经验；具有丰富的行业解决方案经验，具有智慧城市领域(如智慧政务、城市大脑、社区治理等)、大型央企行业项目数据管理、数据治理落地经验、具备丰富的业务与行业知识经验；\n4.40周岁及以下；\n5.熟悉Java和数据库技术基础，熟悉分布式、多线程、异步处理、消息处理、搜索等中间件产品和工作机制，拥有5年以上系统架构或大型项目的研发经验；\n6.深入理解负载均衡、缓存技术、分布式技术、数据库和性能调优等各种框架工作原理，有框架开发/定制开发经验者优先考虑；\n7.具备良好的业务分析理解能力和系统设计能力，能结合业务场景抽象业务模型，独立分析和解决复杂问题；\n8.良好的跨团队协作能力，与相关协作人员密切合作。"]
[11,"中级系统架构师","SA-11",2,"合肥","1.负责一体化平台运营相关业务分析与实施,并制定相关的技术方案；\n2.主导项目的架构设计和核心模块设计;\n3.参加技术难题攻关，并成为核心成员，保证项目按期高质量交付;\n4.负责核心功能的架构与代码模板编写，开发与维护系统公用核心模块;\n5.识别出技术方向、产品组件、技术培训等需求，并组织实施;\n6.为开发人员提供技术指导及帮助。","1.硕士及以上学历；\n2.计算机科学与技术类、电子科学与技术类、信息与通信工程类专业；\n3.有5年以上J2EE类产品和项目研发经验，具有丰富的行业解决方案经验，如政府行业相关工作业务经验；\n4.35周岁及以下；\n5.熟悉Java和数据库技术基础，精通Web应用相关技术，熟悉分布式、多线程、异步处理、消息处理、搜索等中间件产品和工作机制，拥有3年以上系统架构或大型项目的研发经验；\n6.深入理解负载均衡、缓存技术、分布式技术、数据库和性能调优等各种框架工作原理，有框架开发/定制开发经验者优先考虑；\n7.具备良好的业务分析理解能力和系统设计能力，能结合业务场景抽象业务模型，独立分析和解决复杂问题；\n8.良好的跨团队协作能力，与相关协作人员密切合作。"]
[12,"系统架构师","SA-12",2,"合肥","1.主导项目的架构设计和核心模块设计;\n2.主导技术难题攻关，保证项目按期高质量交付;\n3.负责核心功能的架构与代码模板编写，开发与维护系统公用核心模块;\n4.识别出技术方向、产品组件、技术培训等需求，并组织实施;\n5.为开发人员提供技术指导及帮助。","1.大学本科及以上学历，硕士及以上学历优先；\n2.计算机类、电子信息类专业；\n3.有5年以上J2EE类产品和项目研发经验，具有丰富的行业解决方案经验，如政务相关工作业务经验；\n4.35周岁及以下；\n5.熟悉Java和数据库技术基础，精通Web应用相关技术，熟悉分布式、多线程、异步处理、消息处理、搜索等中间件产品和工作机制，拥有3年以上系统架构或大型项目的研发经验；\n6.深入理解负载均衡、缓存技术、分布式技术、数据库和性能调优等各种框架工作原理，有框架开发/定制开发经验者优先考虑；\n7.具有抽象设计能力，思路清晰，善于思考，能独立分析和解决问题；\n8.具备良好的业务分析理解能力和系统设计能力，能结合业务场景抽象业务模型，独立分析和解决复杂问题；\n9.良好的跨团队协作能力，与相关协作人员密切合作。"]
[13,"系统架构师","SA-13",1,"合肥","1.从事信息技术应用创新、政务信息化等系统规划工作，为现有业务系统提供信息技术应用创新落地技术指导；\n2.紧跟保密信息技术应用创新领域市场发展动态，分析友商产品能力，研判市场发展趋势，拓展公司保密信息技术应用创新产品体系，制定产品立项建议方案；\n3.研究国内外信息安全技术发展趋势和公司已有产品能力，提出符合保密领域使用场景的产品建议方案；\n4.对团队成员进行有步骤、系统地培训和实践，帮助团队成员扩大视野、提升技能。","1.大学本科及以上学历，硕士及以上学历优先；\n2.计算机类、电子信息类专业；\n3.5年以上行业解决方案或架构设计从业经历；\n4.35周岁及以下；\n5.熟悉计算机硬件系统集成，独立管理或作为技术专家参与完整的信息技术应用创新落地项目;\n6.Java或数据库开发方面技术专家，透彻理解大型商业项目架构设计，对网络、安全、服务器、虚拟化、中间件、数据库、备份等主流产品和技术较熟悉，对云计算、数据中心、运维、维保类项目有一定理解和经验；\n7.开发过多个复杂的商业应用软件或系统，参与过信息技术应用创新项目方案设计的优先，有政府行业信息化系统项目经验的优先；\n8.熟悉常见应用系统技术架构与云部署规划，熟悉微服务、分布式数据库等基本部署架构；\n9.熟悉政府行业主流厂商解决方案及相关产品，并有成功实施经验；负责信息技术应用创新项目的梳理及规划，并能够完成系统架构设计；\n10.具备相关单位评定的相关领域高级及以上职称的人员优先。"]
[14,"系统架构师","SA-14",1,"合肥","1.负责产品与项目的架构设计和核心模块设计;\n2.负责技术难题攻关，保障产品与项目高质量交付;\n3.负责核心代码编写，规划与设计公共核心模块;\n4.识别出技术方向、产品组件、技术培训等需求，并组织实施;\n5.指导中高阶软件开发人员。","1.大学本科及以上学历，硕士及以上学历优先；\n2.计算机类、电子信息类专业；\n3.5年以上J2EE类产品和项目研发经验，具有丰富的行业解决方案经验，负责过国资国企相关业务架构经验优先；\n4.35周岁及以下；\n5.熟悉Java和数据库技术基础，精通Web应用相关技术，熟悉分布式、多线程、异步处理、消息处理、搜索等中间件产品和工作机制，拥有3年以上系统架构或大型项目的研发经验；\n6.深入理解负载均衡、缓存技术、分布式技术、数据库和性能调优等各种框架工作原理，有框架开发/定制开发经验者优先考虑；\n7.具有抽象设计能力，思路清晰，善于思考，能独立分析和解决问题；\n8.具备良好的业务分析理解能力和系统设计能力，能结合业务场景抽象业务模型，独立分析和解决复杂问题；\n9.良好的跨团队协作能力，与相关协作人员密切合作。"]
[15,"市场拓展经理","SA-15",2,"合肥","1.负责信息技术应用创新、政务信息化等业务领域的销售及推广工作； \n2.根据市场营销计划，引导和控制市场销售工作的方向和进度，完成部门销售指标；\n3.开拓新市场，发展新客户、发展新代理新渠道，增加产品销售范围；\n4.负责辖区市场信息的收集及竞争对手的分析；\n5.负责销售区域内市场活动的策划和执行。","1.大学本科及以上学历，硕士及以上学历优先；\n2.通信、计算机、电子技术、市场营销专业； \n3.有3年以上信息化相关领域销售工作经验，有信息技术应用创新业务销售经验；\n4.35周岁及以下；\n5.有独立运作重大销售项目能力，具有智慧城市行业从业背景优先； \n6.熟悉各类销售渠道与销售方式，熟悉政府相关招投标流程； \n7.具有敏感的商业和市场意识，分析问题及解决问题能力强，具有优秀的资源整合能力和业务推进能力； \n8.性格乐观，工作认真细致，具备良好的沟通合作技巧。"]
[16,"高级市场经理","SA-16",1,"合肥","1.负责公司构建高效的市场资讯系统和内外部行业专家资源；\n2.负责战略机会的市场洞察和前瞻性研究，为公司的战略发展提供决策支持；\n3.负责公司业务的战略落地工作统筹，销售目标的制定和销售业务管理；\n4.负责立体化客户关系和市场生态构建，销售渠道体系建立和管理；\n5.负责公司品牌体系建设和市场活动管理；\n6.负责公司所在行业的相关协会管理工作。","1.硕士及以上学历；\n2.专业不限，市场营销类专业优先；\n3.10年以上工作经验，其中3年以上大数据相关上市公司中层及以上管理岗位工作经验；\n4.45周岁及以下；\n5.良好的综合管理能力，认真严谨，抗压能力强，做事积极主动，执行力强；\n6.熟悉政务信息化项目营销管理工作，工作业绩较为突出；\n7.熟悉市场环境，熟练掌握市场相关政策，具有成熟完善的项目信息渠道及资源体系，有一定的客户资源及基础。"]
[17,"高级产品经理","SA-17",1,"合肥","1.负责公司在数字政府领域的政策研究和业务发展规划；\n2.深入发掘并识别各项新技术与数字政府领域的融合创新；\n3.制定公司在数字政府领域的产品线规划，指导产品路标规划；\n4.指导并牵头数字政府相关基线产品的设计、发布和市场评估工作。","1.大学本科及以上学历，硕士及以上学历优先；\n2.计算机类、电子信息类专业；\n3.10年以上数字政府行业产品工作经验；\n4.40周岁及以下；\n5.具备政府某个行业领域的业务规划和产品规划能力，主导规划过至少2个市级及以上应用级别的相关产品，拥有政务行业工作经验优先；\n6.具备丰富的产品设计经验，至少拥有2个以上独立的产品设计经验，掌握需求迭代管理和版本规划方法，熟练使用axure,Visio,EA,project等产品工具；\n7.具备较强的协调能力和沟通能力，拥有高度责任感和客户服务意识；\n8.具备较强的产品方案编写能力、PPT制作能力和良好的演讲汇报能力。"]
[18,"中级产品经理","SA-18",1,"合肥","1.参与公司在数字政府领域的政策研究和业务发展规划；\n2.发掘并识别各项新技术与数字政府领域的融合创新；\n3.制定公司在数字政府领域的产品路标规划；\n4.负责数字政府相关基线产品的设计、发布和市场评估工作。","1.大学本科及以上学历，硕士及以上学历优先；\n2.计算机类、电子信息类专业；\n3.5年以上数字政府行业产品工作经验；\n4.40周岁及以下；\n5.具备政府某个行业领域的业务规划和产品规划能力，主导规划过至少1个市级及以上应用级别的相关产品，拥有政务行业工作经验优先；\n6.具备丰富的产品设计经验，至少拥有2个以上独立的产品设计经验，掌握需求迭代管理和版本规划方法，熟练使用axure,Visio,EA,project等产品工具；\n7.具备较强的协调能力和沟通能力，拥有高度责任感和客户服务意识；\n8.具备较强的产品方案编写能力、PPT制作能力和良好的演讲汇报能力。"]
[19,"产品经理","SA-19",1,"合肥","1.基于对内部现状、行业发展和监管政策的理解，协助业务部门共同制定数据业务的产品形态和运营机制；\n2.负责公司的数据交易相关平台工具建设，满足数据业务授权、交易等需求；\n3.负责收集和挖掘行业客户的数据需求，完成行业数据产品的规划、设计产物输出；\n4.负责产品孵化、研发、发布全生命周期的需求管理工作；\n5.对产品上线后的应用成效进行分析，关注应用数据和用户反馈，持续优化产品。","1.大学本科及以上学历，硕士及以上学历优先； \n2.计算机类、电子信息类专业；\n3.5年以上数据应用相关软件或大数据平台等数据类产品的设计经验；具备数据交易平台产品设计和使用经验优先；\n4.35周岁及以下； \n5.具备数据类产品规划和设计能力，至少拥有2个以上独立的数据类产品规划和设计经验，熟悉数据仓库、数据湖、隐私计算、数据挖掘分析等关键技术的实现原理；\n6.熟悉政务数据的核心组成，熟悉政务数据分类分级的原则、方法、流程、安全管控要求等；\n7.具备较强的协调能力和沟通能力，能很好的协调市场、销售、研发、实施与产品的衔接工作；\n8.具备较强的产品文档编写能力、PPT制作能力和良好的演讲汇报能力。"]
[20,"产品经理","SA-20",2,"合肥","1.理解、发掘并识别行业客户/用户的核心诉求，进行产品规划、需求分析、竞品分析；\n2.根据需求分析产物要求，进行产品详细调研，负责产品的原型设计和功能规格说明书编写；\n3.负责产品开发过程的指导、推进和验收，确保产品质量和按计划交付；\n4.负责产品孵化、研发、发布全生命周期的需求管理工作；\n5.对产品上线后的应用成效进行分析，关注应用数据和用户反馈等，持续优化产品。","1.大学本科及以上学历，硕士及以上学历优先；\n2.计算机类、电子信息类、经济类、管理类专业；\n3.3年以上国资国企行业产品经验，作为产品经理至少主导完成过1个国资国企相关产品；\n4.35周岁及以下；\n5.具备丰富的产品规划和设计经验，至少拥有2个以上独立的产品规划和设计经验，掌握需求迭代管理和版本规划方法，熟练使用axure,Visio,EA,project等产品工具；\n6.对业务有较强的逻辑分析能力、独立思考能力和创新能力，善于发现产品创新需求，并能从业务的角度提供方案建议；\n7.具备较强的协调能力和沟通能力，能很好的协调市场、销售、研发、实施与产品的衔接工作；\n8.具备较强的产品文档编写能力、PPT制作能力和良好的演讲汇报能力。"]
[21,"项目经理","SA-21",1,"合肥","1.统筹项目日常管理工作，合理有效的运用项目管理知识、工具和技能，制定项目管理计划、协调内外部资源、保障项目高效交付、提升客户满意度；\n2.负责客户需求管理，识别项目目标，根据客户需求制定编写相关业务流程、响应机制及培训方案等材料；\n3.负责保障项目实施过程中各阶段的文档完整性和规范性；\n4.关注项目团队整体能力提升，开展项目管理知识和经验分享，参与项目管理流程改进等。","1.大学本科及以上学历，硕士及以上学历优先； \n2.计算机类、电子信息类专业；\n3.5年以上信息化领域项目管理经验，作为项目经理主导完成过至少1个合同额不低于500万的政企行业信息化项目；\n4.40周岁及以下；\n5.熟悉政务数据分类分级的原则、方法、流程、安全管控要求等；\n6.具备良好的沟通能力、执行力及分析问题和解决问题的能力，能够从战略到细节层面全面把控项目；\n7.具有优秀的语言表达能力和文档编写能力，能独立组织撰写各类综合性文字材料；\n8.具备相关单位评定的相关领域高级及以上职称的人员优先。"]
[22,"项目经理","SA-22",1,"合肥","1.统筹项目日常管理工作，合理有效的运用项目管理知识、工具和技能，制定项目管理计划、协调内外部资源、保障项目高效交付、提升客户满意度；\n2.负责项目实施总体规划、产品测试选型、上线实施、验收等相关工作；\n3.负责客户需求管理，识别项目目标，根据客户需求编制相关业务流程、响应机制及培训方案等材料；\n4.负责保障项目实施过程中各阶段的文档完整性和规范性；\n5.关注项目团队整体能力提升，开展项目管理知识和经验分享，参与项目管理流程改进等。","1.大学本科及以上学历，硕士及以上学历优先；\n2.计算机类、电子信息类、经济类、管理类专业；\n3.5年以上云相关业务领域项目管理经验，作为项目经理主导完成过至少1个合同额不低于1000万的政企行业信息化项目；\n4.40周岁及以下；\n5.熟悉云业务工作流程和管理规范，了解云业务架构；\n6.具备良好的沟通能力、执行力及分析问题和解决问题的能力，以结果为导向，能够从战略到细节层面全面把控项目；\n7.具有优秀的语言表达能力和文档编写能力，能独立组织撰写各类综合性文字材料；\n8.具备相关部门评定的相关领域高级及以上职称的人员优先。"]
[23,"高级运维工程师","SA-23",1,"合肥","1.保障业务系统升级部署、发布上线，持续开展监控平台的维护和优化，并提升交付效率和监控质量；                                                                                                                             2.负责保障业务系统的稳定性和可用性，处理日常业务异常告警和线上问题；                                                         \n3.负责业务系统的性能分析及运行环境优化，并持续提升业务系统的资源使用率；                   \n4.主动发现生产环境的问题和隐患，保障生产环境安全、稳定运行。","1.大学本科及以上学历，硕士及以上学历优先；\n2.计算机类、电子信息类专业；\n3.5年以上运维经验，熟悉业务运维流程；\n4.35周岁及以下；\n5.有政府行业运维经验者优先；\n6.熟悉Linux系统，能够对相关服务性能调优、定位故障并处理；\n7.熟悉DevOps、SRE思维和方法论，熟悉k8s、Docker容器相关工作原理、架构及编排技术，具备大型项目落地、运维经验；\n8.有自动化运维工具建设经验；熟练掌握系统运维工作流程和规范，包括系统需求收集分析、部署发布、数据安全、脚本编程、故障处理等；\n9.熟悉ITIL、ITSS、ISO20000等运维标准者优先。"]
[24,"安全工程师","SA-24",1,"合肥","1.负责信息安全运营保障工作；\n2.参与信息安全战略规划设计和安全管理体系建设，并推动执行；\n3.负责安全防御体系与合规能力方案设计、实施建设；\n4.负责安全应急事件响应与处理;\n5.统筹组织攻防演练/重保等网络信息安全活动。","1.大学本科及以上学历，硕士及以上学历优先；\n2.计算机类、电子信息类专业；\n3.5年以上信息安全相关工作经验；\n4.35周岁及以下；\n5.熟悉业界主流的安全规划设计方案，并对国内信息安全法律法规和方法论具有较深了解，包括但不限于等级保护、密码安全、数据安全、终端安全、应用安全等；\n6.熟悉安全管理和安全保障体系建设，具备技术、规范、流程等体系建设经验和突发安全事件处理经验；\n7.至少具备数字政府项目安全保障和方案设计、安全产品体系规划和管理、全国级行业技术分享、行业安全标准制定、攻防演练和重保护网的其中一项经验；\n8.具备相关部门评定的相关领域高级及以上职称的人员优先。"]
[25,"安全工程师","SA-25",1,"合肥","1.负责信息安全规划和设计工作；\n2.负责信息安全运营保障工作；\n3.负责安全差距分析，制定解决措施，并推动落地；\n4.负责落实项目安全管理工作，规划和保障项目安全措施落地;\n5.负责安全应急事件响应与处理；\n6.参与公司信息安全战略规划设计和安全管理体系建设，并推动执行。","1.大学本科及以上学历，硕士及以上学历优先；\n2.计算机类、电子信息类专业；\n3.5年以上信息安全相关工作经验；\n4.35周岁及以下；\n5.熟悉业界主流的安全规划设计方案，并对国内信息安全法律法规和方法论具有较深了解，包括但不限于云安全、等级保护、密码安全、数据安全、终端安全、应用安全等；\n6.熟悉安全管理和安全保障体系建设，具备技术、规范、流程等体系建设经验和突发安全事件处理经验；\n7.至少具备项目安全服务保障、解决方案规划和设计、安全产品体系规划和管理、攻防演练和重保护网的其中两项经验；\n8.具备相关部门评定的相关领域高级及以上职称的人员优先。"]
[26,"研发工程师","SA-26",3,"合肥","1.负责产品或项目研发工作；\n2.负责软件工程系统的设计、开发、测试、上线等过程相关工作；\n3.参与项目业务需求讨论与方案设计；\n4.按既定方案或设计文档进行程序的编写工作并具备一定的团队管理经验；\n5.负责编写、整理软件开发文档。","1.大学本科及以上学历，硕士及以上学历优先；\n2.计算机类、电子信息类专业；\n3.5年及以上的开发经验；\n4.35周岁及以下；\n5.熟悉J2EE技术架构体系，语言基础知识扎实，有OOP思想，熟悉Spring微服务等主流开源框架，包括SpringBoot、SpringCloud、Mybatis等；熟悉微服务运行、监控、安全等相关知识；熟悉常用设计模式、主流的SSH框架等；\n6.熟悉常用的中间件及性能调优，如Redis、Kafka、Nacos、Elasticsearch等；\n7.熟悉使用常用的前端开发技术和数据库，如HTML、CSS、JS、jQuery、Oracle、Mysql等；\n8.具备良好的业务分析理解能力和系统设计能力，能结合业务场景抽象业务模型，独立分析和解决复杂问题；\n9.思路清晰，思维敏捷，快速的学习能力；良好的跨团队协作能力，有强烈的上进心和求知欲。\n"]
[27,"云运维工程师","SA-27",4,"合肥","1.负责业务上云技术方案编制，审核上云项目相关材料，撰写用户单位所需的相关文件；\n2.负责业务上云确认、资源更改和重点保障等工作，并持续跟踪；\n3.负责安全事件处理和应急响应工作，组织排查解决问题，并撰写报告；\n4.主动发现云上安全隐患、推动云上业务资源优化，协调技术单位整改相关问题；\n5.负责云上业务巡查、收集和整理运营数据，提取数据进行汇总分析，协助编制运营周、月、季报等报告。","1.大学本科及以上学历，硕士及以上学历优先；\n2.计算机类，电子信息类专业；\n3.2年以上政企信息化关领域项目支撑经验；\n4.35周岁及以下；\n5.熟悉云业务架构、云平台工作流程和管理规范；\n6.具有行业云交付经验者优先；\n7.具有云上虚拟化安全分析经验者优先；\n8.具备相关部门评定的相关领域高级及以上职称的人员优先。"]
[28,"数据分析师","SA-28",1,"合肥","1.负责数据统计、数据标签、数据模型等开发工作；\n2.负责业务数据梳理、流程优化，构建指标体系，支撑数据产品落地；\n3.负责数据指标、数据治理、数据可视化等操作流程和文档的组织管理；\n4.负责数据仓库架构搭建和优化，提升数据服务质量。","1.大学本科及以上学历，硕士及以上学历优先；\n2.计算机类、数学类、统计学类，电子科学与技术类、地理信息科学类专业；\n3.5年以上主流数据库相关工作经验，熟练掌握数据库知识，有较强的数据库设计和编程能力；\n4.35周岁及以下；\n5.精通会编写SQL语句、视图、存储过程等，能及时排除数据库故障，并对数据库进行持续性能优化；\n6.熟悉大数据生态系统组件，如：Hive.HBae.MapReduce.Kafka.Flink等；\n7.优秀的分析问题和解决问题的能力，较强的沟通能力，具备良好的团队合作精神；\n8.具备相关部门评定的相关领域高级及以上职称的人员优先。"]
[29,"交易运营经理","SA-29",1,"合肥","1.负责数据交易的政策、制度及行业研究等；\n2.负责拟定、建立数据交易管理方案、业务规则、标准和流程；\n3.负责交易数据的挖掘和分析，以及数据产品的设计、分类和管理；\n4.负责数据交易业务全流程的落地执行、评估和优化等。","1.大学本科及以上学历，硕士及以上学历优先； \n2.计算机类、电子信息类、经济类、金融学类、法学类、管理学专业；\n3.5年以上大数据行业应用经验运作，熟悉大数据、交易场所相关政策、法规，具有标准化产品或服务的运营管理经验；\n4.35周岁及以下；\n5.从事过数据交易和服务相关工作的优先；\n6.良好的综合管理能力，认真严谨，抗压能力强，做事积极主动，学习能力和执行力强，有较强的市场敏锐度。"]
[30,"高级运营经理","SA-30",1,"合肥","1.根据公司业务发展与战略思考,推动战略规划制定，组织保障战略的实施落地；\n2.协助搭建公司的治理结构和组织架构设置，建立公司经营运转体系并持续完善；\n3.识别和分析业务发展过程中存在的问题,根据分析结果给出战略性建议，提出业务与管理的改进建议；\n4.负责信息化端到端业务流程体系的规划设计，推动业务各环节高效协同 ；\n5.建立公司人力资源管理、项目管理、采购管理等内部管理机制，组建相关人才梯队，保证资源合理配置和组织运转效率；\n6.负责公司重大战略项目和任务的推进及督办,对重大任务和项目进行监督和评估；\n7.负责公司重要会议的组织,上传下达，支撑信息共享和科学决策。","1.硕士及以上学历；\n2.管理学类专业；\n3.10年以上工作经验，其中8年以上大数据相关上市公司经营管理工作经验；承担过公司中层及以上管理职务优先；\n4.45周岁及以下；\n5.具备丰富的政府信息化行业项目管理、流程体系建设、人力资源管理、战略运营等工作经验，主导过覆盖500人以上团队的管理变革经验优先；\n6.具有5年以上政府行业信息化的项目交付经验，获得过项目管理类资质认证；\n7.具有不少于一个2000万以上的政府类项目的负责人经验，熟悉政务类业务，项目业绩优秀；\n8.市级及以上高层次人才优先。"]
[31,"战略运营","SA-31",1,"合肥","1.编制公司年度经营计划，制定运营方案，协助决策层完成绩效目标闭环管理；\n2.推动年度经营目标分解到各业务/部门，推动组织绩效目标制定，包括量化目标的筛选、设定、拆解，以及非量化目标的设定；\n3.监控业务经营状态，组织开展月度、季度经营分析，对组织绩效执行过程追踪、分析、考核评价等；\n4.支持业务完成日常经营的过程管理，及时发现并反馈问题，提供决策依据；\n5.建立项目运营管理体系，保障项目流程运转顺畅，进行项目运营分析和监控；\n6.组织各类经营会议，跟进会议决议的具体落地及反馈。","1.大学本科及以上学历，硕士及以上学历优先；\n2.经济学类、计算机类、管理学类、法学类专业；\n3.具有3年以上信息化项目管理经验，擅长业务流程搭建；5年以上大型信息化国企或上市公司战略运营、经营分析相关工作经验；熟悉公司战略、财务分析、业务建模、绩效管理等相关知识；\n4.40周岁及以下；\n5.擅长数据分析和撰写经营分析报告；\n6.较强的战略思考、逻辑思维和沟通协调能力；\n7.有强烈的工作责任心和事业心，积极乐观，能承担较大的工作压力。"]

{"sheet":"Sheet1","index":3,"n_rows":0,"n_cols":0,"rows_kept":0,"cut":false,"hidden":false,"merged":[]}

{"sheet":"需求明细（旧）","index":4,"n_rows":45,"n_cols":12,"rows_kept":45,"cut":false,"hidden":true,"merged":[[0,0,0,9]]}
["数字安徽招聘需求汇总表（2023年7月份）"]
["序号","岗位","招聘数量","分批次招聘","招聘数量","所属部门/负责人","投入方向","岗位职责","修改后","任职要求","岗位类别"]
[1,"高级解决方案架构师\n（一体化服务运营业务方向）",4,null,{"$f":"C3+D3","v":4},"产品与解决方案部\n蒋毅\n","1一体化平台服务运营","1.负责售前进行技术交流，基于公司的技术体系、为政府领域客户提供相关产品解决方案；\n2.深刻理解大数据和AI相关解决方案架构所需关键技术、体系架构、设计模式，负责架构/平台/技术项目/标准规范等建设；\n3.深刻理解客户需求，为客户提供业务架构、应用架构、技术架构、数据架构设计；负责业务模块设计，且能够结合业务规划，定义各系统应用功能边界及系统间的集成关系；\n4.负责面向售前团队提供技术赋能；整理、设计行业解决方案，与后台产品团队沟通业务需求；\n5.在项目可研、初设、详细设计阶段，负责面向客户提供设计咨询服务。",null,"1.大学本科及以上学历，硕士及以上学历优先；\n2.计算机类、电子信息类专业；\n3.具有5年以上政务信息化解决方案、售前咨询经验，同时拥有政务行业软件设计开发经验或架构设计经验人员优先；\n4.40周岁及以下；\n5.至少对一个政务信息化行业细分解决方案方向的行业知识、业务知识、业务架构、应用架构有整体深刻理解，能够在细分专业领域独立完成客户调研、需求分析、业务设计、架构设计、并在技术架构师的帮助下，完成业务架构的落地方案，有智慧城市、城市管理、数字政府、政务服务等行业经验者优先；\n6.具有优秀的书面和口头表达能力，思路清晰，系统思维能力好，善于沟通；\n7.具有相关部门评定的相关领域高级及以上职称的人员优先。","解决方案架构师"]
[2,"中级解决方案架构师 \n（一体化服务运营业务方向）",5,null,{"$f":"C4+D4","v":5},"产品与解决方案部\n蒋毅\n","1一体化平台服务运营","1.负责售前进行技术交流，基于公司的技术体系、为政府领域客户提供相关产品解决方案；\n2.熟练掌握大数据和AI相关解决方案架构所需关键技术、体系架构、设计模式，架构/平台/技术项目/标准规范等建设；\n3.深刻理解客户需求，为客户提供业务架构、应用架构、技术架构、数据架构设计；负责业务模块设计，且能够结合业务规划，定义各系统应用功能边界及系统间的集成关系；\n4.负责面向售前团队提供技术赋能；整理、设计行业解决方案，与后台产品团队沟通业务需求。\n5.在项目可研、初设、详细设计阶段，负责面向客户提供设计咨询服务。","1.面向业务部门，基于相关平台的设计规范、建设规范等，负责提供项目建议书、项目可研报告/初步设计等方案的技术咨询、编制支撑服务；\n2.负责售前进行技术交流，基于公司的技术体系、为政府领域客户提供相关产品解决方案；\n3.熟悉数字政府业务相关解决方案架构所需关键技术、体系架构、设计模式，负责架构/平台/技术项目/标准规范等建设；\n4.深刻理解客户需求，为客户提供业务架构、应用架构、技术架构、数据架构设计；负责业务模块设计，且能够结合业务规划，定义各系统应用功能边界及系统间的集成关系；\n5.负责面向售前团队提供技术赋能；整理、设计行业解决方案，与后台产品团队沟通业务需求。","1.大学本科及以上学历，硕士及以上学历优先；\n2.计算机类、电子信息类专业；\n3.具有3年以上政务信息化解决方案、售前咨询经验；\n4.35周岁及以下；\n5.具有咨询管理的经验，有较强的市场敏锐度，拥有高度责任感和客户服务意识；\n6.熟悉政务信息化类项目建议书、项目可研报告/初步设计等方案文本编制及相关工作流程；\n7.熟悉数字政府行业和项目运作，具有较为丰富的数字政府解决方案的经验；\n8.良好的沟通和表达能力，认真严谨，抗压能力强，做事积极主动，执行力强。","解决方案架构师"]
[3,"初级解决方案架构师\n（一体化服务运营业务方向）",2,null,2,"产品与解决方案部\n蒋毅\n","1一体化平台服务运营","1.负责售前进行技术交流，基于公司的技术体系、为政府领域客户提供相关产品解决方案；\n2.基本了解大数据和AI相关解决方案架构所需关键技术、体系架构、设计模式，架构/平台/技术项目/标准规范等建设；\n3.理解客户需求，为客户提供业务架构、应用架构、技术架构、数据架构设计；负责业务模块设计，且能够结合业务规划，定义各系统应用功能边界及系统间的集成关系；\n4.面向售前团队提供技术赋能；整理、设计行业解决方案，与后台产品团队沟通业务需求。\n5.在项目可研、初设、详细设计阶段，负责面向客户提供设计咨询服务。","1.负责售前进行技术交流，基于公司的技术体系、为政府领域客户提供相关产品解决方案；\n2.深刻理解客户需求，为客户提供业务架构、应用架构、技术架构、数据架构设计；针对需求进行技术规划，设计方案，能够合理的挖掘和引导客户需求；\n3.在项目可研、初设等售前阶段，负责面向客户提供售前咨询服务；\n4.负责相关平台的设计规范、建设规范、技术手册、Q&A等的材料收集、更新和对外支撑服务工作。","1.硕士研究生及以上学历；\n2.计算机类、电子信息类等专业；\n3.具有2年以上政务信息化解决方案、售前咨询经验；\n4.35周岁及以下；\n5.具有咨询管理的经验，有较强的市场敏锐度，拥有高度责任感和客户服务意识；\n6.熟悉政务信息化类项目建议书、项目可研报告/初步设计等方案文本编制及相关工作流程；\n7.熟悉数字政府行业和项目运作，具有较为丰富的数字政府解决方案的经验；\n8.良好的沟通和表达能力，认真严谨，抗压能力强，做事积极主动，执行力强。","解决方案架构师"]
[4,"解决方案架构师\n（数字政府业务方向）",2,null,2,"产品与解决方案部\n蒋毅\n","3省数据局专班","1.负责城市大脑类、一网统管类、一网通办类业务项目的需求调研、针对需求进行技术规划，设计方案；\n2.对咨询项目的执行负责，制定工作计划并推进实施，并保证项目按时按质完成；\n3.在咨询现场和客户沟通，解决项目进行中的各种问题，能够合理的挖掘和引导客户需求；\n4.配合政务信息化项目的推广，如客户沟通交流、流程推进、招投标等工作；\n5.主动协调各相关资源，负责城市大脑类、一网统管类、一网通办类政务信息化项目落地的全流程运作。",null,"1.大学本科及以上学历，硕士及以上学历优先；\n2.计算机类、电子信息类等专业；\n3.具有5年以上城市大脑类、一网统管类、一网通办类解决方案、售前咨询经验；\n4.35周岁及以下；\n5.熟悉2种及以上智慧应用产品；\n6.具有咨询管理的经验，有较强的市场敏锐度，拥有高度责任感和客户服务意识；\n7.熟悉数字政府行业和项目运作，具有较为丰富的数字政府解决方案的经验；\n8.良好的沟通和表达能力，认真严谨，抗压能力强，做事积极主动，执行力强。","解决方案架构师"]
[5,"解决方案架构师 \n（云业务方向）",1,-1,0,"产品与解决方案部\n蒋毅\n","4云业务专班","1.负责配合售前进行技术交流，基于公司的技术体系、为政府领域客户提供相关产品解决方案；\n2.熟悉政务云、行业云、大数据和AI相关解决方案架构所需关键技术、体系架构、设计模式，负责架构/平台/技术项目/标准规范等建设；\n3.深刻理解客户需求，为客户提供业务架构、应用架构、技术架构、数据架构设计；负责业务模块设计，且能够结合业务规划，定义各系统应用功能边界及系统间的集成关系；\n4.负责面向售前团队提供技术赋能；整理、设计行业解决方案，与后台产品团队沟通业务需求。\n5.在项目详细设计阶段，负责面向业主单位和设计单位提供详细设计咨询服务和详细设计论证服务。",null,"1.大学本科及以上学历，硕士及以上学历优先；\n2.计算机类、电子信息类专业；\n3.5年以上行业软件设计开发经验或架构设计经验；\n4.35周岁及以下；\n5.熟悉政务云、行业云、大数据和AI相关解决方案架构所需关键技术、体系架构、设计模式，扎实的Java和数据库技术基础，精通Web应用相关技术，熟悉分布式、多线程、异步处理、消息处理、搜索等中间件产品和工作机制；\n6.至少对一个行业细分解决方案方向的行业知识、业务知识、业务架构、应用架构有整体深刻理解，能够在细分专业领域独立完成客户调研、需求分析、业务设计、架构设计、并在技术架构师的帮助下，完成业务架构的落地方案；\n7.具有优秀的书面和口头表达能力，思路清晰，系统思维能力好，善于沟通；\n8.具有相关部门评定的相关领域高级及以上职称的人员优先。\n9.有智慧城市、城市管理、政务服务、政务云等行业经验者优先。","解决方案架构师"]
[6,"解决方案架构师  \n（市场监管业务方向）",1,-1,0,"产品与解决方案部\n蒋毅\n","7行业布局","1.负责市场监管信息化业务项目的需求调研、针对需求进行技术规划，设计方案；\n2.对咨询项目的执行负责，制定工作计划并推进实施，并保证项目按时按质完成；\n3.在咨询现场和客户沟通，解决项目进行中的各种问题，能够合理的挖掘和引导客户需求；\n4.配合政务信息化项目的推广，如客户沟通交流、流程推进、招投标等工作；\n5.主动协调各相关资源，负责市场监管类政务信息化项目落地的全流程运作。",null,"1.大学本科及以上学历，硕士及以上学历优先；\n2.计算机类、电子信息类专业；\n3.具有5年以上市场监管行业解决方案、售前咨询经验；\n4.35周岁及以下；\n5.熟悉2种及以上智慧应用产品；\n6.具有咨询管理的经验，有较强的市场敏锐度，拥有高度责任感和客户服务意识；\n7.熟悉数字政府行业和项目运作，具有较为丰富的数字政府解决方案的经验；\n8.良好的沟通和表达能力，认真严谨，抗压能力强，做事积极主动，执行力强。","解决方案架构师"]
[7,"解决方案架构师\n（医疗信息化业务方向）",1,null,1,"产品与解决方案部\n蒋毅\n","7行业布局","1.负责医疗信息化业务项目的需求调研、针对需求进行技术规划，设计方案；\n2.对咨询项目的执行负责，制定工作计划并推进实施，并保证项目按时按质完成；\n3.在咨询现场和客户沟通，解决项目进行中的各种问题，能够合理的挖掘和引导客户需求；\n4.配合政务信息化项目的推广，如客户沟通交流、流程推进、招投标等工作；\n5.主动协调各相关资源，负责医疗行业类政务信息化项目落地的全流程运作。",null,"1.大学本科及以上学历，硕士及以上学历优先；\n2.计算机类、电子信息类专业；\n3.具有5年以上医疗信息化行业解决方案、售前咨询经验；\n4.35周岁及以下；\n5.熟悉2种及以上行业智慧应用产品；\n6.具有咨询管理的经验，有较强的市场敏锐度，拥有高度责任感和客户服务意识；\n7.熟悉数字政府行业和项目运作，具有较为丰富的数字政府解决方案的经验；\n8.良好的沟通和表达能力，认真严谨，抗压能力强，做事积极主动，执行力强。","解决方案架构师"]
[8,"高级产品经理\n（数字政府业务方向）",1,null,1,"产品与解决方案部\n蒋毅\n","3省数据局专班","1.负责公司在数字政府领域的政策研究和业务发展规划；\n2.深入发掘并识别各项新技术与数字政府领域的融合创新；\n3.制定公司在数字政府领域的产品线规划，指导产品路标规划；\n4.指导并牵头数字政府相关基线产品的设计、发布和市场评估工作。","1. 统筹负责公司在数字政府领域的政策研究和业务发展规划；\n2. 统筹负责发掘并识别各项新技术与数字政府领域的融合创新；\n3. 牵头制定公司在数字政府领域的产品线规划和产品路标规划；\n4. 统筹负责数字政府相关基线产品的设计、发布和市场评估工作。","1.大学本科及以上学历，硕士及以上学历优先；\n2.计算机类、电子信息类专业；\n3.10年及以上政府行业产品工作经验；\n4.40周岁及以下；\n5.具备政府某个行业领域的业务规划和产品规划能力，主导规划过至少2个市级及以上应用级别的相关产品，拥有政务行业工作经验优先；\n6.具备丰富的产品设计经验，至少拥有2个以上独立的产品设计经验，掌握需求迭代管理和版本规划方法，熟练使用axure,Visio,EA,project等产品工具；\n7.具备较强的协调能力和沟通能力，拥有高度责任感和客户服务意识；\n8.具备较强的产品方案编写能力、PPT制作能力和良好的演讲汇报能力。","产品经理"]
[9,"中级产品经理\n（数字政府业务方向）",1,null,1,"产品与解决方案部\n蒋毅\n","3省数据局专班","1.参与公司在数字政府领域的政策研究和业务发展规划；\n2.发掘并识别各项新技术与数字政府领域的融合创新；\n3.制定公司在数字政府领域的产品路标规划；\n4.负责数字政府相关基线产品的设计、发布和市场评估工作。","1.参与制定公司在数字政府领域的政策研究和业务发展规划；\n2.参与发掘并识别各项新技术与数字政府领域的融合创新；\n3.负责公司在数字政府领域的产品路标规划落地；\n4.负责数字政府相关基线产品的设计、发布和市场评估等具体工作落地。","1.大学本科及以上学历，硕士及以上学历优先；\n2.计算机类、电子信息类专业；\n3.5年及以上数字政府行业产品工作经验；（统一调整）\n4.40周岁及以下；\n5.具备政府某个行业领域的业务规划和产品规划能力，主导规划过至少1个市级及以上应用级别的相关产品，拥有政务行业工作经验优先；\n6.具备丰富的产品设计经验，至少拥有2个以上独立的产品设计经验，掌握需求迭代管理和版本规划方法，熟练使用axure,Visio,EA,project等产品工具；\n7.具备较强的协调能力和沟通能力，拥有高度责任感和客户服务意识；\n8.具备较强的产品方案编写能力、PPT制作能力和良好的演讲汇报能力。","产品经理"]
[10,"产品经理\n（行业应用方向）",2,-2,0,"产品与解决方案部\n蒋毅\n","7行业布局","1.理解、发掘并识别行业客户/用户的核心诉求，进行产品规划、需求分析、竞品分析；\n2.根据需求分析产物要求，进行产品详细调研，负责产品的原型设计和功能规格说明书编写；\n3.负责产品开发过程的指导、推进和验收，确保产品质量和按计划交付；\n4.负责产品孵化、研发、发布全生命周期的需求管理工作；\n5.对产品上线后的应用成效进行分析，关注应用数据和用户反馈等，持续优化产品。",null,"1.大学本科及以上学历，硕士及以上学历优先；\n2.计算机类、电子信息类专业；\n3.5年及以上政府行业产品经验，熟悉政府信息化项目的特点；具备医疗健康类或市场监管类产品经验者优先；\n4.35周岁及以下；\n5.具备丰富的产品规划和设计经验，至少拥有2个以上独立的产品规划和设计经验，掌握需求迭代管理和版本规划方法，熟练使用axure,Visio,EA,project等产品工具；\n6.对业务有较强的逻辑分析能力、独立思考能力和创新能力，善于发现产品创新需求，并能从业务的角度提供方案建议；\n7.具备较强的协调能力和沟通能力，能很好的协调市场、销售、研发、实施与产品的衔接工作；\n8.具备较强的产品文档编写能力、PPT制作能力和良好的演讲汇报能力。","产品经理"]
[11,"高级系统架构师\n（一体化平台服务运营）",2,null,2,"研发交付部\n余青松","1一体化平台服务运营","1.负责一体化平台运营相关业务规划,并指导技术方案的制定；\n2.主导重大项目的架构设计和核心模块设计;\n3.牵头技术难题攻关，保证项目按期高质量交付;\n4.指导并审核核心功能的架构与代码模板编写\n5.识别出技术方向、产品组件、技术培训等需求，并推动落地;\n5.为开发人员提供技术指导及帮助。","1.负责制定平台服务运营技术领域的未来发展规划;\n2.负责平台运营相关业务分析与实施,并制定相关的技术预研方案；\n3.负责指导项目完成架构设计和核心模块设计，并完成设计方案;\n4.支撑平台开发过程中遇到的技术难题攻关，保证项目按期高质量交付;\n5.主导平台持续迭代架构设计与优化,分析现有系统不足,找到系统的瓶颈,改进、提高系统性能、扩展性;\n6.对业界新技术保持敏锐的感知,积极探索新技术在一体化平台产品上的应用。","1.大学本科及以上学历，硕士及以上学历优先；\n2.计算机类、电子信息类专业；\n3.40周岁及以下；\n4.10年以上大型政府行业项目经验；\n5.具有丰富的行业解决方案经验，具有智慧城市领域(如智慧政务、城市大脑、社区治理等)、大型央企行业项目数据管理、数据治理落地经验、具备丰富的业务与行业知识经验；\n6.熟悉Java和数据库技术基础，熟悉分布式、多线程、异步处理、消息处理、搜索等中间件产品和工作机制，拥有5年以上系统架构或大型项目的研发经验；\n7.深入理解负载均衡、缓存技术、分布式技术、数据库和性能调优等各种框架工作原理，有框架开发/定制开发经验者优先考虑；\n8.具备良好的业务分析理解能力和系统设计能力，能结合业务场景抽象业务模型，独立分析和解决复杂问题；\n9.良好的跨团队协作能力，与相关协作人员密切合作。","系统架构师"]
[12,"中级系统架构师\n（一体化平台服务运营）",2,null,2,"研发交付部\n余青松","1一体化平台服务运营","1.负责一体化平台运营相关业务分析与实施,并制定相关的技术方案；\n2.主导（重大-删除）项目的架构设计和核心模块设计;\n3.参加技术难题攻关，并成为核心成员，保证项目按期高质量交付;\n4.负责核心功能的架构与代码模板编写，开发与维护系统公用核心模块;\n5.识别出技术方向、产品组件、技术培训等需求，并组织实施;\n6.为开发人员提供技术指导及帮助。","1.负责系统总体规划，进行技术预研，确定系统架构和技术方案决策，进行技术交流沟通；\n2.负责完成软件架构设计工作,包括系统的架构设计、系统分析、软件实现、性能调优等，并指导研发设计实施;\n3.负责技术方案编写并参与项目在技术方案方面的评审;\n4.负责核心技术问题的攻关和系统优化，协助解决项目开发过程中的技术难题；\n5.负责平台运营技术培训，以及为开发人员提供技术指导及帮助。","1.硕士及以上学历；\n2.计算机科学与技术类、电子科学与技术类、信息与通信工程类专业；\n3.35周岁及以下；\n4.有5年以上J2EE类产品和项目研发经验，具有丰富的行业解决方案经验，如政府行业相关工作业务经验；\n5.熟悉Java和数据库技术基础，精通Web应用相关技术，熟悉分布式、多线程、异步处理、消息处理、搜索等中间件产品和工作机制，拥有3年以上系统架构或大型项目的研发经验；\n6.深入理解负载均衡、缓存技术、分布式技术、数据库和性能调优等各种框架工作原理，有框架开发/定制开发经验者优先考虑；\n7.具备良好的业务分析理解能力和系统设计能力，能结合业务场景抽象业务模型，独立分析和解决复杂问题；\n8.良好的跨团队协作能力，与相关协作人员密切合作。","系统架构师"]
[13,"系统架构师\n(云业务方向)",1,-1,0,"研发交付部\n余青松","4云业务专班","1.负责根据客户需求提供完整解决方案，进行方案讲解、演示和产品介绍；\n2.负责省级政务云需求调研与云服务规划，负责用户信息系统迁移上云方案设计与技术架构支持；\n3.负责部门数据中心运营、运维、技术服务管理；\n4.针对云平台架构进行安全方案设计与脆弱点研究分析，形成改进方案，并推动落地。",null,"1.硕士及以上学历；\n2.计算机类、电子信息类专业；\n3.5年以上行业解决方案或架构设计从业经历；\n4.35周岁及以下；\n5.熟悉通用服务器、存储、网络设备、超融合设备、数据库一体机、负载均衡等架构与基本管理技能； 熟悉Vmware、Openstack等技术架构，有部署实施经验；\n6.熟悉常见应用系统技术架构与云部署规划，熟悉微服务、分布式数据库等基本部署架构；至少了解系统监控、网管软件、运维管理平台等其中一项；\n7.有信息化项目汇报材料编制及独立汇报能力，包括政府行文、方案和PPT等形式；\n8.具备相关部门评定的相关领域高级及以上职称的人员优先。","系统架构师"]
[14,"系统架构师\n（数字政府业务方向）",2,null,2,"研发交付部\n余青松","3省数据局专班","1.主导重大项目的架构设计和核心模块设计;\n2.主导技术难题攻关，保证项目按期高质量交付;\n3.负责核心功能的架构与代码模板编写，开发与维护系统公用核心模块;\n4.识别出技术方向、产品组件、技术培训等需求，并组织实施;\n5.为开发人员提供技术指导及帮助。",null,"1.大学本科及以上学历，硕士及以上学历优先；\n2.计算机类、电子信息类专业；\n3.35周岁及以下；\n4.有5年以上J2EE类产品和项目研发经验，具有丰富的行业解决方案经验，如政务相关工作业务经验；\n5.熟悉Java和数据库技术基础，精通Web应用相关技术，熟悉分布式、多线程、异步处理、消息处理、搜索等中间件产品和工作机制，拥有3年以上系统架构或大型项目的研发经验；\n6.深入理解负载均衡、缓存技术、分布式技术、数据库和性能调优等各种框架工作原理，有框架开发/定制开发经验者优先考虑；\n7.具有抽象设计能力，思路清晰，善于思考，能独立分析和解决问题；\n8.具备良好的业务分析理解能力和系统设计能力，能结合业务场景抽象业务模型，独立分析和解决复杂问题；\n9.良好的跨团队协作能力，与相关协作人员密切合作。","系统架构师"]
[15,"项目经理                     （医疗业务方向）",1,-1,0,"研发交付部\n余青松","7行业布局","1.统筹项目日常管理工作，合理有效的运用项目管理知识、工具和技能，制定项目管理计划、协调内外部资源、保障项目高效交付及客户满意度；\n2.负责客户需求管理，识别项目目标，根据客户需求制定编写相关业务流程、响应机制及培训方案等材料；\n3.协助前端人员对项目的投标方案及合同提供建议，识别交付风险和问题；\n4.关注项目团队整体能力提升，开展项目管理知识和经验分享，参与项目管理流程改进等。",null,"1.大学本科及以上学历，硕士及以上学历优先；\n2.计算机类、电子信息类专业；\n3.5年以上政府行业项目管理经验，作为项目经理主导完成过至少1个合同额不低于1000万的政府信息化项目；\n4.35周岁及以下，\n5.具备良好的沟通能力、执行力及分析问题和解决问题的能力，以结果为导向，能够从战略到细节层面全面把控项目；\n6.具有优秀的语言表达能力和文档编写能力，能独立组织撰写各类综合性文字材料；\n7.有政府医疗卫生行业项目管理经验、高项证书/pmp证书者优先。","项目经理  "]
[16,"高级运维工程师",1,null,1,"研发交付部\n余青松","3省数据局专班","1.保障业务系统升级部署、发布上线，持续开展监控平台的维护和优化，并提升交付效率和监控质量；                                                                                                                             2.负责保障业务系统的稳定性和可用性，处理日常业务异常告警和线上问题；                                                         3.负责业务系统的性能分析及运行环境优化，并持续提升业务系统的资源使用率；                   \n4.主动发现生产环境的问题和隐患，保障生产环境安全、稳定运行。",null,"1.大学本科及以上学历，硕士及以上学历优先；\n2.计算机类、电子信息类专业；\n3.5年以上运维经验，熟悉业务运维流程；\n4.35周岁及以下；\n5.有政府行业运维经验者优先；\n6.熟悉Linux系统，能够对相关服务性能调优、定位故障并处理；\n7.熟悉DevOps、SRE思维和方法论，熟悉k8s、Docker容器相关工作原理、架构及编排技术，具备大型项目落地、运维经验；\n8.有自动化运维工具建设经验；熟练掌握系统运维工作流程和规范，包括系统需求收集分析、部署发布、数据安全、脚本编程、故障处理等；\n9.熟悉ITIL、ITSS、ISO20000等运维标准者优先。","运维工程师"]
[17,"企业信息化运维工程师",1,null,1,"研发交付部\n余青松","8平台","1.负责公司内部各信息化系统日常运维工作，保障信息化系统稳定运行；\n2.参与企业内部信息化项目建设，做好项目需求、开发、上线、验收等各阶段管控工作，按要求完成项目目标；\n3.对企业内部信息化所涉及到的业务流程进行梳理、优化、创新，推动信息化系统的持续改进，不断满足公司业务需求；\n4.负责公司内部网络、办公等设备的使用维护等工作。",null,"1.大学本科及以上学历，硕士及以上学历优先； \n2.计算机类、电子信息类专业；\n3.5年以上企业信息化工作经验；（细化）\n4.35周岁及以下，\n5.工作认真细致，责任心强，吃苦耐劳，服务意识强，有一定的沟通能力和学习能力；\n6.对Windows操作系统有深度的了解，熟悉办公软件的使用、设置及故障排除，如office，电子邮件，远程协助软件等；\n7.熟练掌握linux操作系统安装、配置、调优，熟悉常规的linux命令，具备一定的shell脚本编写能力；\n8.了解计算机网络相关原理，能进行网络问题诊断处理。","运维工程师"]
[18,"安全工程师",1,null,1,"研发交付部\n余青松","8平台","1、负责信息安全运营保障工作；\n2、参与信息安全战略规划设计和安全管理体系建设，并推动执行；\n3、负责安全防御体系与合规能力方案设计、实施建设；\n4、负责安全应急事件响应与处理;\n5、统筹组织攻防演练/重保等网络信息安全活动。","1、大学本科及以上学历；\n2、计算机类、电子信息类专业；\n3、5年以上信息安全相关工作经验，年龄35周岁及以下；\n4、熟悉业界主流的安全规划设计方案，并对国内信息安全法律法规和方法论具有较深了解，包括但不限于等级保护、密码安全、数据安全、终端安全、应用安全等；\n6、熟悉安全管理和安全保障体系建设，具备技术、规范、流程等体系建设经验和突发安全事件处理经验；\n7、至少具备数字政府项目安全保障和方案设计、安全产品体系规划和管理、全国级行业技术分享、行业安全标准制定、攻防演练和重保护网的其中一项经验；\n8、具备信息安全类证书，如CISP、CISSP、DPO（数据保护官）、CCSP（云安全）等优先，人社部门评定或人社部门认可单位评定的相关领域高级及以上职称的人员优先。","1.大学本科及以上学历，硕士及以上学历优先；\n2.计算机类、电子信息类专业；\n3.5年以上信息安全相关工作经验，年龄35周岁及以下；\n4.熟悉业界主流的安全规划设计方案，并对国内信息安全法律法规和方法论具有较深了解，包括但不限于等级保护、密码安全、数据安全、终端安全、应用安全等；\n5.熟悉安全管理和安全保障体系建设，具备技术、规范、流程等体系建设经验和突发安全事件处理经验；\n6.至少具备数字政府项目安全保障和方案设计、安全产品体系规划和管理、全国级行业技术分享、行业安全标准制定、攻防演练和重保护网的其中一项经验；\n7.具备相关部门评定的相关领域高级及以上职称的人员优先。","安全工程师"]
[19,"解决方案架构师 \n（数据业务方向）",1,null,1,"产品与解决方案部\n蒋毅\n","5数据运营及交易业务","1.负责数据业务（数据交易、数据运营业务相关）的行业研究、政策研究等；\n2.负责业务规划，行业解决方案研究和论证，以及相关商业模式的设计，制定工作计划并推进实施；\n3.协调相关资源，负责数据相关行业重要活动，构建行业影响力。",null,"1.硕士及以上学历；\n2.计算机类、电子信息类、经济类、金融学类、管理类、地理信息科学专业；\n3.5年以上大数据行业应用相关软件开发、咨询或运营服务相关经验；\n4.具有品牌宣传和活动策划经验；\n5.40周岁及以下；\n6.熟悉数据行业的业务运作，具有较丰富的行业和政策研究经验；\n7.良好的综合管理能力，认真严谨，抗压能力强，做事积极主动，执行力强，有较强的市场敏锐度，出色的分析、撰写、汇报能力，逻辑思维和沟通能力强。","解决方案架构师"]
[20,"解决方案架构师 \n（数据业务方向）",2,null,2,"产品与解决方案部\n蒋毅\n","5数据运营及交易业务","1.负责普惠金融、人工智能、新能源和智能网联汽车、工业互联网、医疗大健康、智慧农业等行业政策和市场的研究；\n2.负责以上行业的业务发展规划，构建行业整体解决方案，并输出完整的应用落地实施方案；\n3.负责推进行业解决方案的落地，并完成评估和提出改进计划等",null,"1.大学本科及以上学历，硕士及以上学历优先；\n2.计算机类、电子信息类、经济类、金融学类、管理类、地理信息科学专业；\n3.5年以上大数据行业开发应用咨询经验，主导过重大细分行业应用解决方案的规划和落地；；\n4.35周岁及以下；\n5.能够在细分专业领域独立完成客户调研、需求分析、业务设计、架构设计；\n6.具有优秀的书面和口头表达能力，思路清晰，系统思维能力好，善于沟通；                 7.有汽车行业大数据工作经验优先。","解决方案架构师"]
[21,"项目经理                      （数据业务方向）",1,null,1,"产品与解决方案部\n蒋毅\n","5数据运营及交易业务","1.统筹项目日常管理工作，合理有效的运用项目管理知识、工具和技能，制定项目管理计划、协调内外部资源、保障项目高效交付、提升客户满意度；\n2.负责客户需求管理，识别项目目标，根据客户需求制定编写相关业务流程、响应机制及培训方案等材料；\n3.负责保障项目实施过程中各阶段的文档完整性和规范性；\n4.关注项目团队整体能力提升，开展项目管理知识和经验分享，参与项目管理流程改进等。",null,"1.大学本科及以上学历，硕士及以上学历优先； \n2.计算机类、电子信息类专业；\n3.5年以上信息化领域项目管理经验，作为项目经理主导完成过至少1个合同额不低于500万的政企行业信息化项目；\n4.35周岁及以下；\n5.熟悉政务数据分类分级的原则、方法、流程、安全管控要求等；\n6.具备良好的沟通能力、执行力及分析问题和解决问题的能力，能够从战略到细节层面全面把控项目；\n7.具有优秀的语言表达能力和文档编写能力，能独立组织撰写各类综合性文字材料；\n8.具备相关单位评定的相关领域高级及以上职称的人员优先。","项目经理  "]
[22,"产品经理\n（数据业务方向）",1,null,1,"产品与解决方案部\n蒋毅\n","5数据运营及交易业务","1.基于对内部现状、行业发展和监管政策的理解，协助业务部门共同制定数据业务的产品形态和运营机制；\n2.负责公司的数据交易相关平台工具建设，满足数据业务授权、交易等需求；\n3.负责收集和挖掘行业客户的数据需求，完成行业数据产品的规划、设计产物输出；\n4.负责产品孵化、研发、发布全生命周期的需求管理工作；\n5.对产品上线后的应用成效进行分析，关注应用数据和用户反馈，持续优化产品。",null,"1.大学本科及以上学历，硕士及以上学历优先； \n2.计算机类、电子信息类专业；\n3.5年以上数据应用相关软件或大数据平台等数据类产品的设计经验；具备数据交易平台产品设计和使用经验优先；\n4.35周岁及以下； \n5.具备数据类产品规划和设计能力，至少拥有2个以上独立的数据类产品规划和设计经验，熟悉数据仓库、数据湖、隐私计算、数据挖掘分析等关键技术的实现原理；\n6.熟悉政务数据的核心组成，熟悉政务数据分类分级的原则、方法、流程、安全管控要求等；\n7.具备较强的协调能力和沟通能力，能很好的协调市场、销售、研发、实施与产品的衔接工作；\n8.具备较强的产品文档编写能力、PPT制作能力和良好的演讲汇报能力。","产品经理"]
[23,"交易运营经理",1,null,1,"总体\n郭兴龙","5数据运营及交易业务","1.负责数据交易的政策、制度及行业研究等；\n2.负责拟定、建立数据交易管理方案、业务规则、标准和流程；\n3.负责交易数据的挖掘和分析，以及数据产品的设计、分类和管理；\n4.负责数据交易业务全流程的落地执行、评估和优化等",null,"1.大学本科及以上学历，硕士及以上学历优先； \n2.计算机类、电子信息类、经济类、金融学类、法学类、管理学专业；\n3.5年以上大数据行业应用经验运作，熟悉大数据、交易场所相关政策、法规，具有标准化产品或服务的运营管理经验；；\n4.35周岁及以下；\n5.从事过数据交易和服务相关工作的优先；\n6.良好的综合管理能力，认真严谨，抗压能力强，做事积极主动，学习能力和执行力强，有较强的市场敏锐度。","交易运营经理"]
[24,"高级市场拓展经理",1,-1,0,"市场营销部\n郭兴龙","6信创业务","1. 负责统筹信创业务市场开拓工作，对年度业绩指标的达成情况负责，能够对接区域或行业内关键决策人，建立长期稳定的关系；\n2. 负责分析和预测市场、把握市场趋势，为决策提供准确的相关信息，开拓和发展销售市场；\n3. 开展市场拓展项目管理，定期对市场营销环境、目标、计划、业务活动进行核查分析，及时调整营销策略和计划，制订预防和纠正措施，确保完成营销目标和营销计划；\n4. 负责公共关系构建，能够与业务相关部门、行业协会、科研机构、渠道商、竞争对手、主要媒体等建立联系，建立有效、多边的信息沟通渠道，确保重大项目在竞争中有优于他人的外势支撑",null,"1.大学本科及以上学历，硕士及以上学历优先； \n2.通信、计算机、电子技术、市场营销专业；\n3.具有3年以上信息化相关领域销售管理经验，有信创业务销售经验；\n4.35周岁及以下；\n5.有较强的市场敏锐度，拥有高度责任感和客户服务意识；\n6.熟悉信创行业的项目运作，具有较为丰富的解决方案的经验；\n7.良好的沟通和表达能力，认真严谨，抗压能力强，做事积极主动，执行力强。","市场拓展经理"]
[25,"市场拓展经理\n",3,-1,2,"市场营销部\n郭兴龙","6信创业务","1.负责信创业务相关产品的销售及推广工作； \n2.根据市场营销计划，引导和控制市场销售工作的方向和进度，完成部门销售指标；\n3.开拓新市场，发展新客户、发展新代理新渠道，增加产品销售范围；\n4.负责辖区市场信息的收集及竞争对手的分析；\n5.负责销售区域内市场活动的策划和执行；\n6.完成公司交代的其他工作。",null,"1.大学本科及以上学历，硕士及以上学历优先；\n2.通信、计算机、电子技术、市场营销专业； \n3.有3年以上信息化相关领域销售工作经验，有信创业务销售经验；\n4.35周岁及以下；\n5.有独立运作重大销售项目能力，具有智慧城市行业从业背景优先； \n6.熟悉各类销售渠道与销售方式，熟悉政府相关招投标流程； \n7.具有敏感的商业和市场意识，分析问题及解决问题能力强，具有优秀的资源整合能力和业务推进能力； \n8.性格乐观，工作认真细致，具备良好的沟通合作技巧。 ","市场拓展经理"]
[26,"项目经理\n",1,-1,0,"研发交付部\n余青松","6信创业务","1.统筹项目日常管理工作，合理有效的运用项目管理知识、工具和技能，制定项目管理计划、协调内外部资源、保障项目高效交付及客户满意度；\n2.负责项目实施总体规划、产品测试选型、上线实施、验收等相关工作；\n3.负责客户需求管理，根据客户需求制定编写相关流程材料等；\n4.协助前端人员对项目的投标方案及合同提供建议，识别交付风险和问题；\n5.关注项目团队整体能力提升，开展项目管理知识和经验分享，参与项目管理流程改进等。",null,"1.大学本科及以上学历，硕士及以上学历优先；\n2.计算机类、电子信息类专业；\n3.5年以上政府行业项目管理经验，了解信创背景和行业相关知识，具有行业信创工程交付实施经验；\n4.35周岁及以下，\n5.具备项目规划能力，参与过智慧城市设计及建设项目的优先，参与过信创项目方案设计的优先，有信创项目经验的优先；\n6.具备良好的沟通能力、执行力及分析问题和解决问题的能力，以结果为导向，能够从战略到细节层面全面把控项目；\n7.具有优秀的语言表达能力和文档编写能力，能独立组织撰写各类综合性文字材料；\n8.拥有安全、网络和云计算相关证书者优先。","项目经理"]
[27,"系统架构师               ",1,null,1,"研发交付部\n余青松","6信创业务","1.从事信创项目的系统规划工作，为现有业务系统提供信创落地技术指导；\n2.紧跟保密信创领域市场发展动态，分析友商产品能力，研判市场发展趋势，拓展公司保密信创产品体系，制定产品立项建议方案；\n3.研究国内外信息安全技术发展趋势和公司已有产品能力，提出符合保密领域使用场景的产品建议方案；\n4.对团队成员进行有步骤、系统地培训和实践，帮助团队成员扩大视野、提升技能。",null,"1.大学本科及以上学历，硕士及以上学历优先；\n2.计算机类、电子信息类专业；\n3.5年以上行业解决方案或架构设计从业经历；\n4.40周岁及以下；\n5.熟悉计算机硬件系统集成，独立管理或作为技术专家参与完整的信创落地项目;\n6.Java或数据库开发方面技术专家，透彻理解大型商业项目架构设计，对网络、安全、服务器、虚拟化、中间件、数据库、备份等主流产品和技术较熟悉，对云计算、数据中心、运维、维保类项目有一定理解和经验；\n7.开发过多个复杂的商业应用软件或系统，参与过信创项目方案设计的优先，有政府行业信息化系统项目经验的优先；\n8.熟悉常见应用系统技术架构与云部署规划，熟悉微服务、分布式数据库等基本部署架构；\n9.熟悉政府行业主流厂商解决方案及相关产品，并有成功实施经验；负责信创项目的梳理及规划，并能够完成系统架构设计；\n10.具备相关单位评定的相关领域高级及以上职称的人员优先。","系统架构师               "]
[28,"解决方案架构师\n",1,-1,0,"产品与解决方案部\n蒋毅\n","6信创业务","1.负责配合售前进行技术交流，基于公司的技术体系、为政府领域客户提供信创相关产品解决方案；\n2.熟悉信创、大数据解决方案架构所需关键技术、体系架构、设计模式，负责架构/平台/技术项目/标准规范等建设；\n3.深刻理解客户需求，为客户提供业务架构、应用架构、技术架构、数据架构设计；负责业务模块设计，且能够结合业务规划，定义各系统应用功能边界及系统间的集成关系；\n4.负责面向售前团队提供技术赋能；整理、设计行业解决方案，与后台产品团队沟通业务需求。",null,"1.大学本科及以上学历，硕士及以上学历优先；\n2.计算机类、电子信息类专业；\n3.5年以上行业软件设计开发经验或架构设计经验；\n4.35周岁及以下；\n5.扎实的Java和数据库技术基础，精通Web应用相关技术，熟悉分布式、多线程、异步处理、消息处理、搜索等中间件产品和工作机制；\n6.对政府行业有深刻认识，在信创领域有咨询、解决方案开发、云计算经验者优先；\n7.至少对一个行业细分解决方案方向的行业知识、业务知识、业务架构、应用架构有整体深刻理解，能够在细分专业领域独立完成客户调研、需求分析、业务设计、架构设计、并在技术架构师的帮助下，完成业务架构的落地方案，有大型信创项目等行业经验者优先；\n8.具备较强的沟通能力，能够有效参与与用户高层的交流，深度把握客户实际需求，具备较强的项目的管理和分析能力；；\n9.具备相关部门评定相关领域高级及以上职称的人员优先。","解决方案架构师"]
[29,"高级行业经理",1,null,1,"数字安徽公司","8平台","1.负责公司通用性基础性政务信息化业务规划、团队建设；\n2.负责带领团队构建公司通用性基础性政务信息化业务基线产品和解决方案核心能力；\n3.负责带领团队落实公司通用性基础性政务信息化业务年度经营任务指标；\n4.负责带领团队拓展数字政府业务，持续创新场景和应用；\n5.负责公司产品、解决方案、研发、交付团队建设和管理工作。",null,"1.大学本科及以上学历；\n2.计算机类、电子信息类等专业；\n3.10年以上工作经验，其中8年以上政府行业信息化工作经验；有大数据相关国企或上市公司企业经营管理工作经验，承担过公司中层及以上管理职务优先；\n4.45周岁及以下；\n5.具有100人以上团队管理工作经验，具备市场到解决方案、到产品、到交付端到端管理经验；\n6.具有年度不少于2000万营收业绩，有年度业绩达亿元业绩经验优先；\n7.具有不少于1个市级及以上政府行业客户服务案例，有省级客户服务案例优先；\n8.市级及以上高层次人才优先。","其他"]
[30,"高级运营经理",1,null,1,"数字安徽公司","8平台","1.根据公司业务发展与战略思考,推动战略规划制定，组织保障战略的实施落地；\n2.协助搭建公司的治理结构和组织架构设置，建立公司经营运转体系并持续完善；\n3.识别和分析业务发展过程中存在的问题,根据分析结果给出战略性建议，提出业务与管理的改进建议；\n4.负责信息化端到端业务流程体系的规划设计，推动业务各环节高效协同 ；\n5.建立公司人力资源管理、项目管理、采购管理等内部管理机制，组建相关人才梯队，保证资源合理配置和组织运转效率；\n6.负责公司重大战略项目和任务的推进及督办,对重大任务和项目进行监督和评估；\n7.负责公司重要会议的组织,上传下达，支撑信息共享和科学决策。",null,"1.硕士及以上学历；\n2.管理学类专业；\n3.10年以上工作经验，其中8年以上大数据相关国企或上市公司经营管理工作经验，承担过公司中层及以上管理职务优先；\n4.45周岁及以下；\n5.具备丰富的政府信息化行业项目管理、流程体系建设、人力资源管理、战略运营等工作经验，主导过覆盖500人以上团队的管理变革经验优先；\n6.具有5年以上政府行业信息化的项目交付经验，获得过项目管理类资质认证；\n7.具有不少于一个2000万以上的政府类项目的负责人经验，熟悉政务类业务，项目业绩优秀；\n8.市级及以上高层次人才优先；","其他"]
[31,"高级市场经理",1,null,1,"数字安徽公司","8平台","1.负责公司构建高效的市场资讯系统和内外部行业专家资源；\n2.负责战略机会的市场洞察和前瞻性研究，为公司的战略发展提供决策支持；\n3.负责公司业务的战略落地工作统筹，销售目标的制定和销售业务管理；\n4.负责立体化客户关系和市场生态构建，销售渠道体系建立和管理；\n5.负责公司品牌体系建设和市场活动管理；\n6.负责公司所在行业的相关协会管理工作。","1.结合公司战略目标，负责拟定公司总体市场策略规划，并指导制定营销方针、营销策略及实施方案；\n2.掌握行业相关政策、规划动态，研究与分析细分领域客户合作决策依据，带领团队做好内、外部市场调研及行情研讨工作，以及竞争对手与行业信息的分析；\n3.加强客户开发与管理，高效利用资源，强力开拓新的市场，挖掘新客户；\n4.负责与相关部门及客户单位建立并维护良好的合作关系；\n5.协调相关资源，负责营销项目落地的全流程运作。","1.大学本科及以上学历，硕士及以上学历优先；\n2.专业不限，市场营销类专业优先；\n3.10年以上工作经验，其中3年以上大数据相关国企或上市公司的经营管理工作经验；有大数据相关国企或上市公司市场总监岗位工作经验；（核对一下，试套一下）\n4.45周岁及以下；\n5.良好的综合管理能力，认真严谨，抗压能力强，做事积极主动，执行力强；\n6.熟悉政务信息化项目营销管理工作，工作业绩较为突出；\n7.熟悉市场环境，熟练掌握市场相关政策，具有成熟完善的项目信息渠道及资源体系，有一定的客户资源及基础。 \n8.具有数字化行业协会管理经验优先。","其他"]
[32,"战略运营",1,null,1,"数字安徽公司","8平台","1.根据公司的年度目标制定运营规划方案及推动执行；\n2.跟进已确定年度经营目标到各业务/部门各时间段拆分并作可行性预测；\n3.监督日常业务运营状态，评估指标达成，通过各方运营数据检验运营模式，定期给出阶段运营数据分析；\n4.控制运营风险，提前预警，及时发现并反馈业务运营问题，给出解决建议，提供决策依据；\n5.建立项目运营管理体系，保障项目流程运转顺畅，进行项目运营分析和监控；\n6.建立内部管理和沟通机制，组织各类经营会议，跟进会议决议的具体落地及反馈。","1.硕士及以上学历；\n2.经济、金融、管理类专业；\n3.5年以上大型信息化国企或上市公司战略运营、经营分析相关工作经验；\n4.具有3年以上信息化项目管理经验，擅长业务流程搭建；\n4.40周岁及以下；\n5.擅长数据分析和撰写经营分析报告；\n6.较强的战略思考、逻辑思维和沟通协调能力；\n7.有强烈的工作责任心和事业心，积极乐观，能承担较大的工作压力。\n","1.大学本科及以上学历，硕士及以上学历优先；\n2.经济、金融、管理类、法学专业；\n3.5年以上大型信息化国企或上市公司战略运营、经营分析相关工作经验；\n4.具有3年以上信息化项目管理经验，擅长业务流程搭建；\n5.40周岁及以下；\n6.擅长数据分析和撰写经营分析报告；\n7.较强的战略思考、逻辑思维和沟通协调能力；\n8.有强烈的工作责任心和事业心，积极乐观，能承担较大的工作压力。","战略运营","和张玉琴沟通，招聘人员画像"]
[33,"项目经理",1,null,1,"研发交付部\n余青松","2国资国企业务","1.统筹项目日常管理工作，合理有效的运用项目管理知识、工具和技能，制定项目管理计划、协调内外部资源、保障项目高效交付、提升客户满意度；\n2.负责项目实施总体规划、产品测试选型、上线实施、验收等相关工作；\n3.负责客户需求管理，识别项目目标，根据客户需求编制相关业务流程、响应机制及培训方案等材料；\n4.负责保障项目实施过程中各阶段的文档完整性和规范性；\n5.关注项目团队整体能力提升，开展项目管理知识和经验分享，参与项目管理流程改进等。","1.大学本科及以上学历；\n2.计算机类、电子信息类、经济类、管理类专业；\n3.5年以上云相关业务领域项目管理经验，作为项目经理主导完成过至少1个合同额不低于1000万的政企行业信息化项目；\n4.40周岁及以下；\n5.熟悉云业务工作流程和管理规范，了解云业务架构；\n6.具备良好的沟通能力、执行力及分析问题和解决问题的能力，以结果为导向，能够从战略到细节层面全面把控项目；\n7.具有优秀的语言表达能力和文档编写能力，能独立组织撰写各类综合性文字材料；\n8.具备云计算厂商认定的高级及以上工程师资格认证、计算机技术与软件专业技术高级资格、人社部门评定或人社部门认可单位评定的相关领域高级及以上职称的人员优先。","1.大学本科及以上学历，硕士及以上学历优先；\n2.计算机类、电子信息类、经济类、管理类专业；\n3.5年以上云相关业务领域项目管理经验，作为项目经理主导完成过至少1个合同额不低于1000万的政企行业信息化项目；\n4.40周岁及以下；\n5.熟悉云业务工作流程和管理规范，了解云业务架构；\n6.具备良好的沟通能力、执行力及分析问题和解决问题的能力，以结果为导向，能够从战略到细节层面全面把控项目；\n7.具有优秀的语言表达能力和文档编写能力，能独立组织撰写各类综合性文字材料；\n8.具备相关部门评定的相关领域高级及以上职称的人员优先。","项目经理"]
[34,"解决方案架构师",1,null,1,"产品与解决方案部\n蒋毅\n","2国资国企业务","1.负责国资国企信息化业务项目的需求调研、针对需求进行技术规划，设计方案；\n2.对咨询项目的执行负责，制定工作计划并推进实施，并保证项目按时按质完成；\n3.在咨询现场和客户沟通，解决项目进行中的各种问题，能够合理的挖掘和引导客户需求；\n4.配合国资国企信息化项目的推广，如客户沟通交流、流程推进、招投标等工作；\n5.主动协调各相关资源，负责国资国企信息化项目落地的全流程运作。","1.大学本科及以上学历；\n2.计算机类、电子信息类等专业；\n3.具有5年以上国资国企行业解决方案、售前咨询经验；\n4.35周岁及以下；\n5.具有咨询管理的经验，有较强的市场敏锐度，拥有高度责任感和客户服务意识；\n6.熟悉国资国企行业和项目运作，具有较为丰富的解决方案项目设计经验；\n7.良好的沟通和表达能力，认真严谨，抗压能力强，做事积极主动，执行力强；\n8.硕士及以上学历优先。","1.大学本科及以上学历，硕士及以上学历优先；\n2.计算机类、电子信息类等专业；\n3.具有5年以上国资国企行业解决方案、售前咨询工作经验；\n4.35周岁及以下；\n5.具有咨询管理的经验，有较强的市场敏锐度，拥有高度责任感和客户服务意识；\n6.熟悉国资国企行业和项目运作，具有较为丰富的解决方案项目设计经验；\n7.良好的沟通和表达能力，认真严谨，抗压能力强，做事积极主动，执行力强。\n","解决方案架构师"]
[35,"系统架构师",1,null,1,"研发交付部\n余青松","2国资国企业务","1.负责产品与项目的架构设计和核心模块设计;\n2.负责技术难题攻关，保障产品与项目高质量交付;\n3.负责核心代码编写，规划与设计公共核心模块;\n4.识别出技术方向、产品组件、技术培训等需求，并组织实施;\n5.指导中高阶软件开发人员。","1.大学本科及以上学历；\n2.计算机类、电子信息类专业；\n3.35周岁及以下；\n4.5年以上J2EE类产品和项目研发经验，具有丰富的行业解决方案经验，负责过国资国企相关业务架构经验优先；\n5.熟悉Java和数据库技术基础，精通Web应用相关技术，熟悉分布式、多线程、异步处理、消息处理、搜索等中间件产品和工作机制，拥有3年以上系统架构或大型项目的研发经验；\n6.深入理解负载均衡、缓存技术、分布式技术、数据库和性能调优等各种框架工作原理，有框架开发/定制开发经验者优先考虑；\n7.具有抽象设计能力，思路清晰，善于思考，能独立分析和解决问题；\n8.具备良好的业务分析理解能力和系统设计能力，能结合业务场景抽象业务模型，独立分析和解决复杂问题；\n9.良好的跨团队协作能力，与相关协作人员密切合作；\n10.硕士及以上学历优先。","1.大学本科及以上学历，硕士及以上学历优先；\n2.计算机类、电子信息类专业；\n3.5年以上J2EE类产品和项目研发经验，具有丰富的行业解决方案经验，负责过国资国企相关业务架构经验优先；\n4.35周岁及以下；\n5.熟悉Java和数据库技术基础，精通Web应用相关技术，熟悉分布式、多线程、异步处理、消息处理、搜索等中间件产品和工作机制，拥有3年以上系统架构或大型项目的研发经验；\n6.深入理解负载均衡、缓存技术、分布式技术、数据库和性能调优等各种框架工作原理，有框架开发/定制开发经验者优先考虑；\n7.具有抽象设计能力，思路清晰，善于思考，能独立分析和解决问题；\n8.具备良好的业务分析理解能力和系统设计能力，能结合业务场景抽象业务模型，独立分析和解决复杂问题；\n9.良好的跨团队协作能力，与相关协作人员密切合作.","系统架构师"]
[36,"产品经理",2,null,2,"产品与解决方案部\n蒋毅\n","2国资国企业务","1.理解、发掘并识别行业客户/用户的核心诉求，进行产品规划、需求分析、竞品分析；\n2.根据需求分析产物要求，进行产品详细调研，负责产品的原型设计和功能规格说明书编写；\n3.负责产品开发过程的指导、推进和验收，确保产品质量和按计划交付；\n4.负责产品孵化、研发、发布全生命周期的需求管理工作；\n5.对产品上线后的应用成效进行分析，关注应用数据和用户反馈等，持续优化产品。","1.大学本科及以上学历；\n2.计算机类、电子信息类、经济类、管理类专业；\n3.3年及以上国资国企行业产品经验，作为产品经理至少主导完成过1个国资国企相关产品；\n4.35周岁及以下；\n5.具备丰富的产品规划和设计经验，至少拥有2个以上独立的产品规划和设计经验，掌握需求迭代管理和版本规划方法，熟练使用axure,Visio,EA,project等产品工具；\n6.对业务有较强的逻辑分析能力、独立思考能力和创新能力，善于发现产品创新需求，并能从业务的角度提供方案建议；\n7.具备较强的协调能力和沟通能力，能很好的协调市场、销售、研发、实施与产品的衔接工作；\n8.具备较强的产品文档编写能力、PPT制作能力和良好的演讲汇报能力；\n9.硕士及以上学历优先。","1.大学本科及以上学历，硕士及以上学历优先；\n2.计算机类、电子信息类、经济类、管理类专业；\n3.3年及以上国资国企行业产品经验，作为产品经理至少主导完成过1个国资国企相关产品；\n4.35周岁及以下；\n5.具备丰富的产品规划和设计经验，至少拥有2个以上独立的产品规划和设计经验，掌握需求迭代管理和版本规划方法，熟练使用axure,Visio,EA,project等产品工具；\n6.对业务有较强的逻辑分析能力、独立思考能力和创新能力，善于发现产品创新需求，并能从业务的角度提供方案建议；\n7.具备较强的协调能力和沟通能力，能很好的协调市场、销售、研发、实施与产品的衔接工作；\n8.具备较强的产品文档编写能力、PPT制作能力和良好的演讲汇报能力。","产品经理"]
[37,"研发工程师",3,null,3,"研发交付部\n余青松","2国资国企业务","1.负责产品或项目研发工作；\n2.负责软件工程系统的设计、开发、测试、上线等过程相关工作；\n3.参与项目业务需求讨论与方案设计；\n4.按既定方案或设计文档进行程序的编写工作并具备一定的团队管理经验；\n5.负责编写、整理软件开发文档。","1.大学本科及以上学历；\n2.计算机类、电子信息类专业；\n3.5年及以上的开发经验；\n4.35周岁及以下；\n5.熟悉J2EE技术架构体系，语言基础知识扎实，有OOP思想，熟悉Spring微服务等主流开源框架，包括SpringBoot、SpringCloud、Mybatis等；熟悉微服务运行、监控、安全等相关知识；熟悉常用设计模式、主流的SSH框架等；\n6.熟悉常用的中间件及性能调优，如Redis、Kafka、Nacos、Elasticsearch等；\n7.熟悉使用常用的前端开发技术和数据库，如HTML、CSS、JS、jQuery、Oracle、Mysql等；\n8.具备良好的业务分析理解能力和系统设计能力，能结合业务场景抽象业务模型，独立分析和解决复杂问题；\n9.思路清晰，思维敏捷，快速的学习能力；\n10.良好的跨团队协作能力，有强烈的上进心和求知欲。","1.大学本科及以上学历，硕士及以上学历优先；\n2.计算机类、电子信息类专业；\n3.5年及以上的开发经验；\n4.35周岁及以下；\n5.熟悉J2EE技术架构体系，语言基础知识扎实，有OOP思想，熟悉Spring微服务等主流开源框架，包括SpringBoot、SpringCloud、Mybatis等；熟悉微服务运行、监控、安全等相关知识；熟悉常用设计模式、主流的SSH框架等；\n6.熟悉常用的中间件及性能调优，如Redis、Kafka、Nacos、Elasticsearch等；\n7.熟悉使用常用的前端开发技术和数据库，如HTML、CSS、JS、jQuery、Oracle、Mysql等；\n8.具备良好的业务分析理解能力和系统设计能力，能结合业务场景抽象业务模型，独立分析和解决复杂问题；\n9.思路清晰，思维敏捷，快速的学习能力；良好的跨团队协作能力，有强烈的上进心和求知欲。\n","研发工程师"]
[38,"云运维工程师",4,null,4,"研发交付部\n余青松","2国资国企业务","1.负责业务上云技术方案编制，审核上云项目相关材料，撰写用户单位所需的相关文件；\n2.负责业务上云确认、资源更改和重点保障等工作，并持续跟踪；\n3.负责安全事件处理和应急响应工作，组织排查解决问题，并撰写报告；\n4.主动发现云上安全隐患、推动云上业务资源优化，协调技术单位整改相关问题；\n5.负责云上业务巡查、收集和整理运营数据，提取数据进行汇总分析，协助编制运营周、月、季报等报告。","1.大学本科及以上学历；\n2.计算机类，电子信息类专业；\n3.2年以上政企信息化关领域项目支撑经验；\n4.35周岁及以下；\n5.熟悉云业务架构、云平台工作流程和管理规范；\n6.具有行业云交付经验者优先；\n7.具有云上虚拟化安全分析经验者优先；\n8.具备厂商类高级认证证书、计算机技术与软件专业技术高级资格、人社部门评定或人社部门认可单位评定的相关领域高级及以上职称的人员优先。","1.大学本科及以上学历，硕士及以上学历优先；\n2.计算机类，电子信息类专业；\n3.2年以上政企信息化关领域项目支撑经验；\n4.35周岁及以下；\n5.熟悉云业务架构、云平台工作流程和管理规范；\n6.具有行业云交付经验者优先；\n7.具有云上虚拟化安全分析经验者优先；\n8.具备相关部门评定的相关领域高级及以上职称的人员优先。","运维工程师"]
[39,"数据分析师",1,null,1,"研发交付部\n余青松","2国资国企业务","1.负责数据统计、数据标签、数据模型等开发工作；\n2.负责业务数据梳理、流程优化，构建指标体系，支撑数据产品落地；\n3.负责数据指标、数据治理、数据可视化等操作流程和文档的组织管理；\n4.负责数据仓库架构搭建和优化，提升数据服务质量。","1.大学本科及以上学历；\n2.计算机类、数学类、统计学类，电子科学与技术、地理信息科学专业；\n3.5年以上主流数据库相关工作经验，熟练掌握数据库知识，有较强的数据库设计和编程能力；\n4.35周岁及以下；\n5.精通会编写SQL语句、视图、存储过程等，能及时排除数据库故障，并对数据库进行持续性能优化；\n6.熟悉大数据生态系统组件，如：Hive.HBae.MapReduce.Kafka.Flink等；\n7.优秀的分析问题和解决问题的能力，较强的沟通能力，具备良好的团队合作精神；\n8.计算机技术与软件专业技术高级资格、人社部门评定或人社部门认可单位评定的相关领域高级及以上职称的人员优先。","1.大学本科及以上学历，硕士及以上学历优先；\n2.计算机类、数学类、统计学类，电子科学与技术、地理信息科学专业；\n3.5年以上主流数据库相关工作经验，熟练掌握数据库知识，有较强的数据库设计和编程能力；\n4.35周岁及以下；\n5.精通会编写SQL语句、视图、存储过程等，能及时排除数据库故障，并对数据库进行持续性能优化；\n6.熟悉大数据生态系统组件，如：Hive.HBae.MapReduce.Kafka.Flink等；\n7.优秀的分析问题和解决问题的能力，较强的沟通能力，具备良好的团队合作精神；\n8.具备相关部门评定的相关领域高级及以上职称的人员优先。","数据分析师"]
[40,"安全工程师",1,null,1,"研发交付部\n余青松","2国资国企业务","1.负责信息安全规划和设计工作；\n2.负责信息安全运营保障工作；\n3.负责安全差距分析，制定解决措施，并推动落地；\n4.负责落实项目安全管理工作，规划和保障项目安全措施落地;\n5.负责安全应急事件响应与处理；\n6.参与公司信息安全战略规划设计和安全管理体系建设，并推动执行。","1.大学本科及以上学历；\n2.计算机类、电子信息类专业；\n3.5年以上信息安全相关工作经验；\n4.35周岁及以下；\n5.熟悉业界主流的安全规划设计方案，并对国内信息安全法律法规和方法论具有较深了解，包括但不限于云安全、等级保护、密码安全、数据安全、终端安全、应用安全等；\n6.熟悉安全管理和安全保障体系建设，具备技术、规范、流程等体系建设经验和突发安全事件处理经验；\n7.至少具备项目安全服务保障、解决方案规划和设计、安全产品体系规划和管理、攻防演练和重保护网的其中两项经验；\n8.具备信息安全类证书，如CISP、CISSP、DPO（数据保护官）、CCSP（云安全）等优先，人社部门评定或人社部门认可单位评定的相关领域高级及以上职称的人员优先。","1.大学本科及以上学历，硕士及以上学历优先；\n2.计算机类、电子信息类专业；\n3.5年以上信息安全相关工作经验；\n4.35周岁及以下；\n5.熟悉业界主流的安全规划设计方案，并对国内信息安全法律法规和方法论具有较深了解，包括但不限于云安全、等级保护、密码安全、数据安全、终端安全、应用安全等；\n6.熟悉安全管理和安全保障体系建设，具备技术、规范、流程等体系建设经验和突发安全事件处理经验；\n7.至少具备项目安全服务保障、解决方案规划和设计、安全产品体系规划和管理、攻防演练和重保护网的其中两项经验；\n8.具备相关部门评定的相关领域高级及以上职称的人员优先。","安全工程师"]
[null,"合计",{"$f":"SUM(C3:C42)","v":62},{"$f":"SUM(D3:D42)","v":-10},52]
[]
[{"$nulls":9},"周四上会，和宋、何沟通确认\n渠道广点"]

{"sheet":"Sheet2","index":5,"n_rows":4,"n_cols":1,"rows_kept":4,"cut":false,"hidden":true,"merged":[]}
[]
["华为解决方案架构师\n职责描述：\n1，研究本领域业务模式，挖掘业务痛点和诉求；\n2，帮助本领域识别数字化变革机会点，并进行本领域变革规划；\n3，创建并清楚展示本领域架构和方案蓝图，确保客户和交付团队理解并达成共识\n职位要求：\n1，8年以上大型企业相关工作经验，成功的项目经历；\n2，熟悉一种ERP软件包；\n3，精通财经、供应链、采购、销售管理等至少两种业务；\n4，熟悉SaaS云，大数据，AI等新兴技术实践，有财经、供应、采购、销售之手一个领域成功实践经验者优先。"]
["证券行业解决方案架构师\n中国/深圳 - 服务 数字金融军团\n岗位职责\n1. 负责证券市场洞察和趋势分析，为证券场景化解决方案得规划和迭代提供输入；\n2. 深度理解证券客户需求和应用场景，将客户需求转换为技术解决方案，支持方案得0~1孵化，以及规模复制；\n3. 负责面向客户的技术交流和方案设计，帮助一线完成NA格局项目得战役攻关。\n4. 对一线SA或PSE进行方案赋能；\n5. 与产品线和周边部门充分协同，支撑相关工作职责达成；\n岗位要求\n业务技能要求：\n1. 有主导大型微金融平台架构设计和落地经验，平台上市并得到市场验证。 2. 精通微金融业务，有丰富的金融业务技术设计和实现经验。 3. 在Java编码，微服务框架，数据库，通过消息和Web服务的集成方面具有丰富的长期经验。 4. 领导开发团队的丰富经验。 5. 深入了解应用程序架构设计，包括。 高并发架构。 6. 与非技术同事沟通并达成一致的解决方案和交付方面的成功实践。 7. 有良好的英语沟通交流能力优先。\n专业知识要求：\n1、负责金融平台解决方案的需求分析抽象、与合作伙伴架构师一起设计形成APAAS与合作伙伴业务开发架构，以及具体方案实现落地； 2、负责业务系统的运营和维护，在安全性、高并发的前提下，保证系统稳定高可用； 3、负责业务系统的持续升级，支撑业务快速发展的前提下，促进系统能力、研发流程的持续提升；"]
["解决方案架构师\n中国/上海 - 云服务 中国云业务部\n岗位职责\n1、承担某个行业/场景/区域的解决方案offering，通过洞察主动发现新机会点，前瞻性地识别行业数字化转型机会点，形成主推方案offering，并通过ISV生态地图的规划，联合伙伴、研发等，构建行业生态能力，主导跨领域解决方案offering的孵化和复制，并持续提升方案的竞争力和可复制性； \n2、面向行业/场景/区域的NA客户，为客户业务的云化转型提供顶层设计、项目咨询与布道，引导客户云化规划并影响客户决策，参与销售策略设计和解决方案设计； \n3、收集和分析竞争对手信息，参与和制定竞争策略。\n岗位要求\n业务技能要求：\n1、 具备很强的沟通能力，在不同级别客户中展现领导力，在与合作伙伴和客户资源组成的团队中发挥领导作用，可参与交付复杂解决方案，从而获得客户整体成功。 \n2、 能够理解行业趋势、剖析行业上云场景，分析行业竞争情况和格局地图，制定并管理所负责行业拓展策略和区域落地。通过挖掘客户需求，评估业务可行性和技术可行性，设计销售策略，成功主导销售项目落地。 \n3、 组织运营能力，开展运营团队建设，打造高绩效队伍，营造氛围，不断提升团队成员能力。根据最终目标制定运营计划，设立分阶段目标，掌控运营节奏。依照运营规划合理规划资源。通过对各项指标的监控，甄别运营风险，确保运营健康、合规。 \n4、 解决方案运营能力，负责运营场景下解决方案设计，支撑客户拓展及落地，通过合理配置达成盈利目标，并形成规模推广和复制。 \n5、 活动运营能力，具备活动策划能力，能有效组织执行并进行活动总结的输出能力。\"\n专业知识要求：\n1、 长期从事至少一种行业，对该领域应用的业务有深度理解，如互联网、金融、制造、汽车、家电、建材等。 \n2、 有ICT业务知识积累，对于所熟悉的业务领域/新领域能准确梳理出业务价值流、业务架构、以及应用架构。 \n3、 满足如下2-4项： 1) 有成功交付大型上云迁移项目咨询、规划和实施经验的优先； 2) 有成功交付一种行业PaaS领域微服务改造和容器化改造的项目咨询、规划和实施经验的优先； 3) 具备客户关系管理经验； 4) 有大型项目运作经验，带过团队为佳； 5) 对华为云与计算业务领域相关技术有较好的理解； 6) 有政务云、产业云基地经理或者业软项目管理经验者优先； 7) 有在技术分析、编译迁移、功能验证、性能调优等4个阶段中分别具备软件移植实施，迁移环境管理和项目沟通管理等方面经验的优先； 8) 有客户数据中台建设、数据仓库项目成功实施经验、咨询公司大数据或数据治理咨询经验者优先。 9) 掌握IT基础架构及集成能力，熟悉云计算、大数据、PaaS、网络、安全、灾备等各技术领域及相关组件的运维经验； 10) 掌握PaaS架构，熟悉Kubernetes、Docker、DevOps等"]

{"sheet":"Sheet3","index":6,"n_rows":0,"n_cols":0,"rows_kept":0,"cut":false,"hidden":true,"merged":[]}